{"text_format":"1","workbook":"xlsx","n_sheets":6,"sheets":["Outputs Monthly","Timeliness Quarterly","CAP Count Summary","Action Plan Summary","DownloadBudgetData (2) Operatio","DownloadBudgetData Original"],"not_rendered":{"charts":0,"images":0,"macros":0,"external_links":0,"defined_names":4,"comments":0,"pivot_tables":0},"unopened":[],"bounds":{"document_bytes":16777216,"sheet_cells":100000,"rows_first":2000,"rows_last":500,"rows_between":2000,"halvings":0,"cell_chars":16384,"cell_head_chars":4096},"cells_cut":0,"cells_raw":0,"read":"whole","date_system":"1900"}

{"sheet":"Outputs Monthly","index":0,"n_rows":143,"n_cols":702,"rows_kept":143,"cut":false,"hidden":false,"merged":[[7,13,7,15],[5,3,5,4],[6,3,6,4],[7,3,7,4],[7,6,7,7],[7,10,7,11],[3,13,5,15]]}
[null,null,null,null,null,null,null,null,null,null,null,null,null,"Annual Financial Receipts"]
[null,"County Fiscal Year 2015-16",null,null,null,null,null,null,null,null,null,null,null,"Total Number of Financial Receipts for the Year:","Projected","Actual"]
[null,"Outputs Monthly Report Form for CCOC",null,null,null,null,null,null,null,null,null,null,null,null,{"$f":"LOOKUP(D8,'DownloadBudgetData (2) Operatio'!B2:B68,'DownloadBudgetData (2) Operatio'!AG2:AG68)","v":453037}]
[null,null,null,null,null,null,null,null,null,null,null,null,null,"Financial Receipts are totaled for the full fiscal year and entered here annually. This annual total is to be reported on the September submission."]
[]
[null,null,"Report for the Month of: ","Mar"]
[null,null,"Version #: ",2]
[null,null,"County: ","Brevard",null,"Contact:","Michelle Levar",null,null,"Telephone:","321-633-7782",null,"E-mail:","michelle.levar@brevardclerk.us"]
[]
[]
[null,null,null,null,null,"Criminal",null,null,null,null,null,null,"Civil"]
[null,null,null,"Circuit","County","Juvenile Delinquency","Traffic","Total",null,"Circuit","County","Traffic","Probate","Family","Juvenile Dependency","Total",null,"Grand Total"]
[null,"Projections"]
[null,null,"Cases/Defendants",{"$f":"LOOKUP(D8,'DownloadBudgetData (2) Operatio'!B2:B68,'DownloadBudgetData (2) Operatio'!C2:C68)","v":9200},{"$f":"LOOKUP(D8,'DownloadBudgetData (2) Operatio'!B2:B68,'DownloadBudgetData (2) Operatio'!D2:D68)","v":10000},{"$f":"LOOKUP(D8,'DownloadBudgetData (2) Operatio'!B2:B68,'DownloadBudgetData (2) Operatio'!E2:E68)","v":1800},{"$f":"LOOKUP(D8,'DownloadBudgetData (2) Operatio'!B2:B68,'DownloadBudgetData (2) Operatio'!F2:F68)","v":7500},{"$f":"SUM(D14:G14)","v":28500},null,{"$f":"LOOKUP(D8,'DownloadBudgetData (2) Operatio'!B2:B68,'DownloadBudgetData (2) Operatio'!G2:G68)","v":5600},{"$f":"LOOKUP(D8,'DownloadBudgetData (2) Operatio'!B2:B68,'DownloadBudgetData (2) Operatio'!H2:H68)","v":7000},{"$f":"LOOKUP(D8,'DownloadBudgetData (2) Operatio'!B2:B68,'DownloadBudgetData (2) Operatio'!L2:L68)","v":55000},{"$f":"LOOKUP(D8,'DownloadBudgetData (2) Operatio'!B2:B68,'DownloadBudgetData (2) Operatio'!I2:I68)","v":5000},{"$f":"LOOKUP(D8,'DownloadBudgetData (2) Operatio'!B2:B68,'DownloadBudgetData (2) Operatio'!J2:J68)","v":7200},{"$f":"LOOKUP(D8,'DownloadBudgetData (2) Operatio'!B2:B68,'DownloadBudgetData (2) Operatio'!K2:K68)","v":350},{"$f":"SUM(J14:O14)","v":80150},null,{"$f":"H14+P14","v":108650}]
[null,null,"Reopenings",{"$f":"LOOKUP(D8,'DownloadBudgetData (2) Operatio'!B2:B68,'DownloadBudgetData (2) Operatio'!M2:M68)","v":8000},{"$f":"LOOKUP(D8,'DownloadBudgetData (2) Operatio'!B2:B68,'DownloadBudgetData (2) Operatio'!N2:N68)","v":2100},{"$f":"LOOKUP(D8,'DownloadBudgetData (2) Operatio'!B2:B68,'DownloadBudgetData (2) Operatio'!O2:O68)","v":2600},{"$f":"LOOKUP(D8,'DownloadBudgetData (2) Operatio'!B2:B68,'DownloadBudgetData (2) Operatio'!P2:P68)","v":2100},{"$f":"SUM(D15:G15)","v":14800},null,{"$f":"LOOKUP(D8,'DownloadBudgetData (2) Operatio'!B2:B68,'DownloadBudgetData (2) Operatio'!Q2:Q68)","v":6700},{"$f":"LOOKUP(D8,'DownloadBudgetData (2) Operatio'!B2:B68,'DownloadBudgetData (2) Operatio'!R2:R68)","v":3600},{"$f":"LOOKUP(D8,'DownloadBudgetData (2) Operatio'!B2:B68,'DownloadBudgetData (2) Operatio'!V2:V68)","v":0},{"$f":"LOOKUP(D8,'DownloadBudgetData (2) Operatio'!B2:B68,'DownloadBudgetData (2) Operatio'!S2:S68)","v":2000},{"$f":"LOOKUP(D8,'DownloadBudgetData (2) Operatio'!B2:B68,'DownloadBudgetData (2) Operatio'!T2:T68)","v":8700},{"$f":"LOOKUP(D8,'DownloadBudgetData (2) Operatio'!B2:B68,'DownloadBudgetData (2) Operatio'!U2:U68)","v":500},{"$f":"SUM(J15:O15)","v":21500},null,{"$f":"H15+P15","v":36300}]
[null,null,"NOA's",{"$f":"LOOKUP(D8,'DownloadBudgetData (2) Operatio'!B2:B68,'DownloadBudgetData (2) Operatio'!W2:W68)","v":500},{"$f":"LOOKUP(D8,'DownloadBudgetData (2) Operatio'!B2:B68,'DownloadBudgetData (2) Operatio'!X2:X68)","v":25},{"$f":"LOOKUP(D8,'DownloadBudgetData (2) Operatio'!B2:B68,'DownloadBudgetData (2) Operatio'!Y2:Y68)","v":3},{"$f":"LOOKUP(D8,'DownloadBudgetData (2) Operatio'!B2:B68,'DownloadBudgetData (2) Operatio'!Z2:Z68)","v":30},{"$f":"SUM(D16:G16)","v":558},null,{"$f":"LOOKUP(D8,'DownloadBudgetData (2) Operatio'!B2:B68,'DownloadBudgetData (2) Operatio'!AA2:AA68)","v":100},{"$f":"LOOKUP(D8,'DownloadBudgetData (2) Operatio'!B2:B68,'DownloadBudgetData (2) Operatio'!AB2:AB68)","v":20},{"$f":"LOOKUP(D8,'DownloadBudgetData (2) Operatio'!B2:B68,'DownloadBudgetData (2) Operatio'!AF2:AF68)","v":15},{"$f":"LOOKUP(D8,'DownloadBudgetData (2) Operatio'!B2:B68,'DownloadBudgetData (2) Operatio'!AC2:AC68)","v":10},{"$f":"LOOKUP(D8,'DownloadBudgetData (2) Operatio'!B2:B68,'DownloadBudgetData (2) Operatio'!AD2:AD68)","v":35},{"$f":"LOOKUP(D8,'DownloadBudgetData (2) Operatio'!B2:B68,'DownloadBudgetData (2) Operatio'!AE2:AE68)","v":25},205,null,763]
[null,"October 2015"]
[null,null,"Cases/Defendants",682,829,136,517,{"$f":"SUM(D18:G18)","v":2164},null,362,696,3410,404,565,40,5477,null,7641]
[null,null,"Reopenings",679,142,280,214,{"$f":"SUM(D19:G19)","v":1315},null,425,378,0,224,638,56,1721,null,3036]
[null,null,"NOA's",35,2,0,3,{"$f":"SUM(D20:G20)","v":40},null,9,1,0,0,3,3,16,null,56,null,null,null,null,null,null,null,null,null,null,null,null,null,null,null,null,null,null,null,null,null,null,null,null,null,null,null,null,null,null,null,null,null,null,null,null,null,null,null,null,null,null,null,null,null,null,null,null,null,null,null,null,null,null,null,null,null,null,null,null,null,null,null,null,null,null,null,null,null,null,null,null,null,null,null,null,null,null,null,null,null,null,null,null,null,null,null,null,null,null,null,null,null,null,null,null,null,null,null,null,null,null,null,null,null,null,null,null,null,null,null,null,null,null,null,null,null,null,null,null,null,null,null,null,null,null,null,null,null,null,null,null,null,null,null,null,null,null,null,null,null,null,null,null,null,null,null,null,null,null,null,null,null,null,null,null,null,null,null,null,null,null,null,null,null,null,null,null,null,null,null,null,null,null,null,null,null,null,null,null,null,null,null,null,null,null,null,null,null,null,null,null,null,null,null,null,null,null,null,null,null,null,null,null,null,null,null,null,null,null,null,null,null,null,null,null,null,null,null,null,null,null,null,null,null,null,null,null,null,null,null,null,null,null,null,null,null,null,null,null,null,null,null,null,null,null,null,null,null,null,null,null,null,null,null,null,null,null,null,null,null,null,null,null,null,null,null,null,null,null,null,null,null,null,null,null,null,null,null,null,null,null,null,null,null,null,null,null,null,null,null,null,null,null,null,null,null,null,null,null,null,null,null,null,null,null,null,null,null,null,null,null,null,null,null,null,null,null,null,null,null,null,null,null,null,null,null,null,null,null,null,null,null,null,null,null,null,null,null,null,null,null,null,null,null,null,null,null,null,null,null,null,null,null,null,null,null,null,null,null,null,null,null,null,null,null,null,null,null,null,null,null,null,null,null,null,null,null,null,null,null,null,null,null,null,null,null,null,null,null,null,null,null,null,null,null,null,null,null,null,null,null,null,null,null,null,null,null,null,null,null,null,null,null,null,null,null,null,null,null,null,null,null,null,null,null,null,null,null,null,null,null,null,null,null,null,null,null,null,null,null,null,null,null,null,null,null,null,null,null,null,null,null,null,null,null,null,null,null,null,null,null,null,null,null,null,null,null,null,null,null,null,null,null,null,null,null,null,null,null,null,null,null,null,null,null,null,null,null,null,null,null,null,null,null,null,null,null,null,null,null,null,null,null,null,null,null,null,null,null,null,null,null,null,null,null,null,null,null,null,null,null,null,null,null,null,null,null,null,null,null,null,null,null,null,null,null,null,null,null,null,null,null,null,null,null,null,null,null,null,null,null,null,null,null,null,null,null,null,null,null,null,null,null,null,null,null,null,null,null,null,null,null,null,null,null,null,null,null,null,null,null,null,null,null,null,null,null,null,null,null,null,null,null,null,null,null,null,null,null,null,null,null,null,null,null,null,null,null,null,null,null,null,null,null,null,null,null,null,null,null,null,null,null,null,null,null,null,null,null,null,null,null,null,null,null,null,null,null,null,null,null,null,null,null,null,null,null,null,null,null,null,null,null,null,null,null,null,null,null,null,null,null,null,null,null,null,null,null,null,null,null,null,null,null,null,null,null,null,null,null,null,null,"PABS4.0"]
[null,"November 2015"]
[null,null,"Cases/Defendants",545,761,124,437,{"$f":"SUM(D22:G22)","v":1867},null,315,610,3291,435,530,14,5195,null,7062]
[null,null,"Reopenings",535,156,186,167,{"$f":"SUM(D23:G23)","v":1044},null,377,339,0,174,560,40,1490,null,2534]
[null,null,"NOA's",18,4,0,4,{"$f":"SUM(D24:G24)","v":26},null,11,2,0,0,6,0,19,null,45]
[null,"December 2015"]
[null,null,"Cases/Defendants",626,762,143,529,{"$f":"SUM(D26:G26)","v":2060},null,356,671,3138,360,517,22,5064,null,7124]
[null,null,"Reopenings",650,140,175,187,{"$f":"SUM(D27:G27)","v":1152},null,297,315,0,238,543,85,1478,null,2630]
[null,null,"NOA's",45,0,0,6,{"$f":"SUM(D28:G28)","v":51},null,4,2,1,0,2,0,9,null,60]
[null,"January 2016"]
[null,null,"Cases/Defendants",655,759,145,506,{"$f":"SUM(D30:G30)","v":2065},null,328,599,3163,343,529,30,4992,null,7057]
[null,null,"Reopenings",719,136,188,174,{"$f":"SUM(D31:G31)","v":1217},null,371,311,0,236,628,56,1602,null,2819]
[null,null,"NOA's",30,2,0,2,{"$f":"SUM(D32:G32)","v":34},null,11,0,0,0,2,2,15,null,49]
[null,"February 2016"]
[null,null,"Cases/Defendants",605,698,134,513,{"$f":"SUM(D34:G34)","v":1950},null,346,640,3550,407,525,51,5519,null,7469]
[null,null,"Reopenings",737,197,225,160,{"$f":"SUM(D35:G35)","v":1319},null,350,330,0,240,610,59,1589,null,2908]
[null,null,"NOA's",33,0,0,0,{"$f":"SUM(D36:G36)","v":33},null,11,1,0,0,3,3,18,null,51]
[null,"March 2016"]
[null,null,"Cases/Defendants",676,837,165,616,{"$f":"SUM(D38:G38)","v":2294},null,397,696,4256,481,655,17,6502,null,8796]
[null,null,"Reopenings",847,261,276,221,{"$f":"SUM(D39:G39)","v":1605},null,358,329,0,272,650,67,1676,null,3281]
[null,null,"NOA's",26,2,1,5,{"$f":"SUM(D40:G40)","v":34},null,12,0,2,0,5,2,21,null,55]
[null,"April 2016"]
[null,null,"Cases/Defendants",null,null,null,null,{"$f":"SUM(D42:G42)","v":0},null,null,null,null,null,null,null,0,null,0]
[null,null,"Reopenings",null,null,null,null,{"$f":"SUM(D43:G43)","v":0},null,null,null,0,null,null,null,0,null,0]
[null,null,"NOA's",null,null,null,null,{"$f":"SUM(D44:G44)","v":0},null,null,null,null,null,null,null,0,null,0]
[null,"May 2016"]
[null,null,"Cases/Defendants",null,null,null,null,{"$f":"SUM(D46:G46)","v":0},null,null,null,null,null,null,null,0,null,0]
[null,null,"Reopenings",null,null,null,null,{"$f":"SUM(D47:G47)","v":0},null,null,null,0,null,null,null,0,null,0]
[null,null,"NOA's",null,null,null,null,{"$f":"SUM(D48:G48)","v":0},null,null,null,null,null,null,null,0,null,0]
[null,"June 2016"]
[null,null,"Cases/Defendants",null,null,null,null,{"$f":"SUM(D50:G50)","v":0},null,null,null,null,null,null,null,0,null,0]
[null,null,"Reopenings",null,null,null,null,{"$f":"SUM(D51:G51)","v":0},null,null,null,0,null,null,null,0,null,0]
[null,null,"NOA's",null,null,null,null,{"$f":"SUM(D52:G52)","v":0},null,null,null,null,null,null,null,0,null,0]
[null,"July 2016"]
[null,null,"Cases/Defendants",null,null,null,null,{"$f":"SUM(D54:G54)","v":0},null,null,null,null,null,null,null,{"$f":"SUM(J54:O54)","v":0},null,{"$f":"H54+P54","v":0}]
[null,null,"Reopenings",null,null,null,null,{"$f":"SUM(D55:G55)","v":0},null,null,null,0,null,null,null,{"$f":"SUM(J55:O55)","v":0},null,{"$f":"H55+P55","v":0}]
[null,null,"NOA's",null,null,null,null,{"$f":"SUM(D56:G56)","v":0},null,null,null,null,null,null,null,{"$f":"SUM(J56:O56)","v":0},null,{"$f":"H56+P56","v":0}]
[null,"August 2016"]
[null,null,"Cases/Defendants",null,null,null,null,{"$f":"SUM(D58:G58)","v":0},null,null,null,null,null,null,null,{"$f":"SUM(J58:O58)","v":0},null,{"$f":"H58+P58","v":0}]
[null,null,"Reopenings",null,null,null,null,{"$f":"SUM(D59:G59)","v":0},null,null,null,0,null,null,null,{"$f":"SUM(J59:O59)","v":0},null,{"$f":"H59+P59","v":0}]
[null,null,"NOA's",null,null,null,null,{"$f":"SUM(D60:G60)","v":0},null,null,null,null,null,null,null,{"$f":"SUM(J60:O60)","v":0},null,{"$f":"H60+P60","v":0}]
[null,"September 2016"]
[null,null,"Cases/Defendants",null,null,null,null,{"$f":"SUM(D62:G62)","v":0},null,null,null,null,null,null,null,{"$f":"SUM(J62:O62)","v":0},null,{"$f":"H62+P62","v":0}]
[null,null,"Reopenings",null,null,null,null,{"$f":"SUM(D63:G63)","v":0},null,null,null,0,null,null,null,{"$f":"SUM(J63:O63)","v":0},null,{"$f":"H63+P63","v":0}]
[null,null,"NOA's",null,null,null,null,{"$f":"SUM(D64:G64)","v":0},null,null,null,null,null,null,null,{"$f":"SUM(J64:O64)","v":0},null,{"$f":"H64+P64","v":0}]
[null,"Year-to-Date"]
[null,null,"Cases/Defendants",{"$f":"SUM(D54+D58+D62+D18+D22+D26+D30+D34+D38+D42+D46+D50)","v":3789},4646,847,3118,{"$f":"SUM(D66:G66)","v":12400},null,{"$f":"SUM(J54+J58+J62+J18+J22+J26+J30+J34+J38+J42+J46+J50)","v":2104},3912,20808,2430,3321,174,32749,null,45149]
[null,null,"Reopenings",4167,1032,1330,1123,{"$f":"SUM(D67:G67)","v":7652},null,2178,2002,0,1384,3629,363,9556,null,17208]
[null,null,"NOA's",187,10,1,20,{"$f":"SUM(D68:G68)","v":218},null,58,6,3,0,21,10,98,null,316]
[null,"Year-to-Date % of Projections"]
[null,null,"Cases/Defendants",{"$f":"D66/D14","v":0.41184782608695653},0.46460000000000001,0.47055555555555556,0.41573333333333334,0.43508771929824563,null,{"$f":"J66/J14","v":0.37571428571428572},0.55885714285714283,0.37832727272727273,0.48599999999999999,0.46124999999999999,0.49714285714285716,0.40859638178415469,null,{"$f":"R66/R14","v":0.41554532903819602}]
[null,null,"Reopenings",0.52087499999999998,0.49142857142857144,0.5115384615384615,0.53476190476190477,0.51702702702702708,null,{"$f":"J67/J15","v":0.32507462686567162},{"$f":"K67/K15","v":0.55611111111111111},0,{"$f":"M67/M15","v":0.69199999999999995},0.41712643678160921,0.72599999999999998,0.44446511627906976,null,{"$f":"R67/R15","v":0.47404958677685949}]
[null,null,"NOA's",0.374,0.4,0.33333333333333331,0.66666666666666663,0.39068100358422941,null,{"$f":"J68/J16","v":0.57999999999999996},{"$f":"K68/K16","v":0.3},{"$f":"L68/L16","v":0.2},0,0.6,0.4,0.47804878048780486,null,{"$f":"R68/R16","v":0.41415465268676277}]
[]
[]
[]
[]
[null,null,null,null,null,null,null,null,null,null,null,null,null,null,null,null,null,null,null,null,null,"Alachua","Oct",1]
[null,null,null,null,null,null,null,null,null,null,null,null,null,null,null,null,null,null,null,null,null,"Baker","Nov",2]
[null,null,null,null,null,null,null,null,null,null,null,null,null,null,null,null,null,null,null,null,null,"Bay","Dec",3]
[null,null,null,null,null,null,null,null,null,null,null,null,null,null,null,null,null,null,null,null,null,"Bradford","Jan",4]
[null,null,null,null,null,null,null,null,null,null,null,null,null,null,null,null,null,null,null,null,null,"Brevard","Feb",5]
[null,null,null,null,null,null,null,null,null,null,null,null,null,null,null,null,null,null,null,null,null,"Broward","Mar",6]
[null,null,null,null,null,null,null,null,null,null,null,null,null,null,null,null,null,null,null,null,null,"Calhoun","Apr",7]
[null,null,null,null,null,null,null,null,null,null,null,null,null,null,null,null,null,null,null,null,null,"Charlotte","May",8]
[null,null,null,null,null,null,null,null,null,null,null,null,null,null,null,null,null,null,null,null,null,"Citrus","Jun",9]
[null,null,null,null,null,null,null,null,null,null,null,null,null,null,null,null,null,null,null,null,null,"Clay","Jul",10]
[null,null,null,null,null,null,null,null,null,null,null,null,null,null,null,null,null,null,null,null,null,"Collier","Aug"]
[null,null,null,null,null,null,null,null,null,null,null,null,null,null,null,null,null,null,null,null,null,"Columbia","Sep"]
[null,null,null,null,null,null,null,null,null,null,null,null,null,null,null,null,null,null,null,null,null,"Dade"]
[null,null,null,null,null,null,null,null,null,null,null,null,null,null,null,null,null,null,null,null,null,"Desoto"]
[null,null,null,null,null,null,null,null,null,null,null,null,null,null,null,null,null,null,null,null,null,"Dixie"]
[null,null,null,null,null,null,null,null,null,null,null,null,null,null,null,null,null,null,null,null,null,"Duval"]
[null,null,null,null,null,null,null,null,null,null,null,null,null,null,null,null,null,null,null,null,null,"Escambia"]
[null,null,null,null,null,null,null,null,null,null,null,null,null,null,null,null,null,null,null,null,null,"Flagler"]
[null,null,null,null,null,null,null,null,null,null,null,null,null,null,null,null,null,null,null,null,null,"Franklin"]
[null,null,null,null,null,null,null,null,null,null,null,null,null,null,null,null,null,null,null,null,null,"Gadsden"]
[null,null,null,null,null,null,null,null,null,null,null,null,null,null,null,null,null,null,null,null,null,"Gilchrist"]
[null,null,null,null,null,null,null,null,null,null,null,null,null,null,null,null,null,null,null,null,null,"Glades"]
[null,null,null,null,null,null,null,null,null,null,null,null,null,null,null,null,null,null,null,null,null,"Gulf"]
[null,null,null,null,null,null,null,null,null,null,null,null,null,null,null,null,null,null,null,null,null,"Hamilton"]
[null,null,null,null,null,null,null,null,null,null,null,null,null,null,null,null,null,null,null,null,null,"Hardee"]
[null,null,null,null,null,null,null,null,null,null,null,null,null,null,null,null,null,null,null,null,null,"Hendry"]
[null,null,null,null,null,null,null,null,null,null,null,null,null,null,null,null,null,null,null,null,null,"Hernando"]
[null,null,null,null,null,null,null,null,null,null,null,null,null,null,null,null,null,null,null,null,null,"Highlands"]
[null,null,null,null,null,null,null,null,null,null,null,null,null,null,null,null,null,null,null,null,null,"Hillsborough"]
[null,null,null,null,null,null,null,null,null,null,null,null,null,null,null,null,null,null,null,null,null,"Holmes"]
[null,null,null,null,null,null,null,null,null,null,null,null,null,null,null,null,null,null,null,null,null,"Indian River"]
[null,null,null,null,null,null,null,null,null,null,null,null,null,null,null,null,null,null,null,null,null,"Jackson"]
[null,null,null,null,null,null,null,null,null,null,null,null,null,null,null,null,null,null,null,null,null,"Jefferson"]
[null,null,null,null,null,null,null,null,null,null,null,null,null,null,null,null,null,null,null,null,null,"Lafayette"]
[null,null,null,null,null,null,null,null,null,null,null,null,null,null,null,null,null,null,null,null,null,"Lake"]
[null,null,null,null,null,null,null,null,null,null,null,null,null,null,null,null,null,null,null,null,null,"Lee"]
[null,null,null,null,null,null,null,null,null,null,null,null,null,null,null,null,null,null,null,null,null,"Leon"]
[null,null,null,null,null,null,null,null,null,null,null,null,null,null,null,null,null,null,null,null,null,"Levy"]
[null,null,null,null,null,null,null,null,null,null,null,null,null,null,null,null,null,null,null,null,null,"Liberty"]
[null,null,null,null,null,null,null,null,null,null,null,null,null,null,null,null,null,null,null,null,null,"Madison"]
[null,null,null,null,null,null,null,null,null,null,null,null,null,null,null,null,null,null,null,null,null,"Manatee"]
[null,null,null,null,null,null,null,null,null,null,null,null,null,null,null,null,null,null,null,null,null,"Marion"]
[null,null,null,null,null,null,null,null,null,null,null,null,null,null,null,null,null,null,null,null,null,"Martin"]
[null,null,null,null,null,null,null,null,null,null,null,null,null,null,null,null,null,null,null,null,null,"Monroe"]
[null,null,null,null,null,null,null,null,null,null,null,null,null,null,null,null,null,null,null,null,null,"Nassau"]
[null,null,null,null,null,null,null,null,null,null,null,null,null,null,null,null,null,null,null,null,null,"Okaloosa"]
[null,null,null,null,null,null,null,null,null,null,null,null,null,null,null,null,null,null,null,null,null,"Okeechobee"]
[null,null,null,null,null,null,null,null,null,null,null,null,null,null,null,null,null,null,null,null,null,"Orange"]
[null,null,null,null,null,null,null,null,null,null,null,null,null,null,null,null,null,null,null,null,null,"Osceola"]
[null,null,null,null,null,null,null,null,null,null,null,null,null,null,null,null,null,null,null,null,null,"Palm Beach"]
[null,null,null,null,null,null,null,null,null,null,null,null,null,null,null,null,null,null,null,null,null,"Pasco"]
[null,null,null,null,null,null,null,null,null,null,null,null,null,null,null,null,null,null,null,null,null,"Pinellas"]
[null,null,null,null,null,null,null,null,null,null,null,null,null,null,null,null,null,null,null,null,null,"Polk"]
[null,null,null,null,null,null,null,null,null,null,null,null,null,null,null,null,null,null,null,null,null,"Putnam"]
[null,null,null,null,null,null,null,null,null,null,null,null,null,null,null,null,null,null,null,null,null,"Santa Rosa"]
[null,null,null,null,null,null,null,null,null,null,null,null,null,null,null,null,null,null,null,null,null,"Sarasota"]
[null,null,null,null,null,null,null,null,null,null,null,null,null,null,null,null,null,null,null,null,null,"Seminole"]
[null,null,null,null,null,null,null,null,null,null,null,null,null,null,null,null,null,null,null,null,null,"St. Johns"]
[null,null,null,null,null,null,null,null,null,null,null,null,null,null,null,null,null,null,null,null,null,"St. Lucie"]
[null,null,null,null,null,null,null,null,null,null,null,null,null,null,null,null,null,null,null,null,null,"Sumter"]
[null,null,null,null,null,null,null,null,null,null,null,null,null,null,null,null,null,null,null,null,null,"Suwannee"]
[null,null,null,null,null,null,null,null,null,null,null,null,null,null,null,null,null,null,null,null,null,"Taylor"]
[null,null,null,null,null,null,null,null,null,null,null,null,null,null,null,null,null,null,null,null,null,"Union"]
[null,null,null,null,null,null,null,null,null,null,null,null,null,null,null,null,null,null,null,null,null,"Volusia"]
[null,null,null,null,null,null,null,null,null,null,null,null,null,null,null,null,null,null,null,null,null,"Wakulla"]
[null,null,null,null,null,null,null,null,null,null,null,null,null,null,null,null,null,null,null,null,null,"Walton"]
[null,null,null,null,null,null,null,null,null,null,null,null,null,null,null,null,null,null,null,null,null,"Washington"]

{"sheet":"Timeliness Quarterly","index":1,"n_rows":83,"n_cols":702,"rows_kept":83,"cut":false,"hidden":false,"merged":[[5,6,5,8],[3,3,3,4],[3,6,3,7],[5,3,5,4],[4,6,4,7],[4,3,4,4],[19,3,21,3],[10,4,12,4],[13,4,15,4],[13,0,15,1],[10,0,12,1],[16,4,18,4],[16,0,18,1],[19,4,21,4],[9,1,9,2],[8,4,9,4],[8,3,9,3],[10,3,12,3],[13,3,15,3],[16,3,18,3],[19,0,21,1],[38,0,40,1],[29,0,31,1],[32,0,34,1],[35,0,37,1],[35,3,37,3],[22,1,22,2],[44,3,45,3],[44,4,45,4],[45,1,45,2],[29,4,31,4],[26,3,28,3],[26,4,28,4],[38,3,40,3],[38,4,40,4],[32,3,34,3],[32,4,34,4],[35,4,37,4],[29,3,31,3],[23,3,25,3],[23,4,25,4],[23,0,25,1],[26,0,28,1],[46,0,48,1],[46,3,48,3],[46,4,48,4],[49,0,51,1],[49,3,51,3],[49,4,51,4],[59,0,61,1],[59,3,61,3],[59,4,61,4],[52,0,54,1],[52,3,54,3],[52,4,54,4],[55,0,57,1],[55,3,57,3],[55,4,57,4],[58,1,58,2],[71,3,73,3],[71,4,73,4],[62,0,64,1],[62,3,64,3],[62,4,64,4],[65,0,67,1],[65,3,67,3],[65,4,67,4],[74,0,76,1],[74,3,76,3],[74,4,76,4],[68,0,70,1],[68,3,70,3],[68,4,70,4],[71,0,73,1],[8,10,8,11],[10,10,12,10],[10,11,12,11],[13,10,15,10],[13,11,15,11],[26,10,28,10],[26,11,28,11],[16,10,18,10],[16,11,18,11],[19,10,21,10],[19,11,21,11],[23,10,25,10],[23,11,25,11],[8,12,8,13],[10,12,12,12],[10,13,12,13],[13,12,15,12],[13,13,15,13],[16,12,18,12],[16,13,18,13],[19,12,21,12],[19,13,21,13],[8,14,8,15],[10,14,12,14],[10,15,12,15],[13,14,15,14],[13,15,15,15],[16,14,18,14],[16,15,18,15],[8,16,8,17],[10,16,12,16],[10,17,12,17],[13,16,15,16],[13,17,15,17],[16,16,18,16],[16,17,18,17],[23,12,25,12],[23,13,25,13],[23,14,25,14],[23,15,25,15],[23,16,25,16],[23,17,25,17],[19,14,21,14],[26,12,28,12],[26,13,28,13],[26,14,28,14],[26,15,28,15],[26,16,28,16],[26,17,28,17],[19,15,21,15],[19,16,21,16],[19,17,21,17],[29,10,31,10],[29,11,31,11],[29,12,31,12],[29,13,31,13],[29,14,31,14],[29,15,31,15],[29,16,31,16],[29,17,31,17],[32,10,34,10],[32,11,34,11],[32,12,34,12],[32,13,34,13],[32,14,34,14],[32,15,34,15],[32,16,34,16],[32,17,34,17],[35,10,37,10],[35,11,37,11],[35,12,37,12],[35,13,37,13],[35,14,37,14],[35,15,37,15],[35,16,37,16],[35,17,37,17],[38,10,40,10],[38,11,40,11],[38,12,40,12],[38,13,40,13],[38,14,40,14],[38,15,40,15],[38,16,40,16],[38,17,40,17],[44,10,44,11],[44,12,44,13],[44,14,44,15],[44,16,44,17],[46,10,48,10],[46,11,48,11],[46,12,48,12],[46,13,48,13],[46,14,48,14],[46,15,48,15],[46,16,48,16],[46,17,48,17],[49,10,51,10],[49,11,51,11],[49,12,51,12],[49,13,51,13],[49,14,51,14],[49,15,51,15],[49,16,51,16],[49,17,51,17],[52,10,54,10],[52,11,54,11],[52,12,54,12],[52,13,54,13],[52,14,54,14],[52,15,54,15],[52,16,54,16],[52,17,54,17],[55,10,57,10],[55,11,57,11],[55,12,57,12],[55,13,57,13],[55,14,57,14],[55,15,57,15],[55,16,57,16],[55,17,57,17],[59,10,61,10],[59,11,61,11],[59,12,61,12],[59,13,61,13],[59,14,61,14],[59,15,61,15],[59,16,61,16],[59,17,61,17],[62,10,64,10],[62,11,64,11],[62,12,64,12],[62,13,64,13],[62,14,64,14],[62,15,64,15],[62,16,64,16],[62,17,64,17],[65,10,67,10],[65,11,67,11],[65,12,67,12],[65,13,67,13],[65,14,67,14],[65,15,67,15],[65,16,67,16],[65,17,67,17],[74,10,76,10],[74,11,76,11],[74,12,76,12],[74,13,76,13],[74,14,76,14],[74,15,76,15],[74,16,76,16],[74,17,76,17],[68,10,70,10],[68,11,70,11],[68,12,70,12],[68,13,70,13],[68,14,70,14],[68,15,70,15],[68,16,70,16],[68,17,70,17],[71,10,73,10],[71,11,73,11],[71,12,73,12],[71,13,73,13],[71,14,73,14],[71,15,73,15],[71,16,73,16],[71,17,73,17]]}
[null,"County Fiscal Year 2015 - 2016"]
[null,"Timeliness Quarterly Report Form for CCOC"]
[]
[null,null,"Report Month of (Quarter Ending): ",{"$f":"'Outputs Monthly'!D6:E6","v":"Mar"},null,"Contact:",1936]
[null,null,"Version #: ",{"$f":"'Outputs Monthly'!D7:E7","v":2},null,"Telephone:","321-633-7782"]
[null,null,"County: ",{"$f":"'Outputs Monthly'!D8:E8","v":"Brevard"},null,"E-mail:","michelle.levar@brevardclerk.us"]
[]
["Timeliness Measures #1: Annual Projected % of new cases OPENED within X business days after initial documents are clocked in."]
[null,null,null,"Performance Measure Standard","# Of Business Days","10/1/15 - 12/31/15","1/1/16 - 3/31/16","4/1/16 - 6/30/16","7/1/16 - 9/30/16",null,{"$f":"F9","v":"10/1/15 - 12/31/15"},null,{"$f":"G9","v":"1/1/16 - 3/31/16"},null,{"$f":"H9","v":"4/1/16 - 6/30/16"},null,{"$f":"I9","v":"7/1/16 - 9/30/16"}]
["A","Criminal",null,null,null,"1st Quarter","2nd Quarter","3rd Quarter","4th Quarter","Year-to-Date","Reason Code","Comments / Actions to Improve","Reason Code","Comments / Actions to Improve","Reason Code","Comments / Actions to Improve","Reason Code","Comments / Actions to Improve",null,1]
["Circuit (defendants)",null,"Total # of defendants",0.8,2,{"$f":"'Outputs Monthly'!D18+'Outputs Monthly'!D22+'Outputs Monthly'!D26","v":1853},{"$f":"'Outputs Monthly'!D30+'Outputs Monthly'!D34+'Outputs Monthly'!D38","v":1936},{"$f":"'Outputs Monthly'!D42+'Outputs Monthly'!D46+'Outputs Monthly'!D50","v":0},{"$f":"'Outputs Monthly'!D54+'Outputs Monthly'!D58+'Outputs Monthly'!D62","v":0},{"$f":"SUM(F11:I11)","v":3789}]
[null,null,"# within 2 business days",null,null,1842,1917,null,null,{"$f":"SUM(F12:I12)","v":3759},null,null,null,null,null,null,null,null,null,"Staffing - Internal"]
[null,null,"% mtg level",null,null,{"$f":"F12/F11","v":0.99406368051807881},{"$f":"G12/G11","v":0.9901859504132231},{"$f":"H12/H11","v":{"$error":"#DIV/0!"}},{"$f":"I12/I11","v":{"$error":"#DIV/0!"}},{"$f":"J12/J11","v":0.99208234362628667},null,null,null,null,null,null,null,null,null,"Staffing - External"]
["County (defendants)",null,"Total # of defendants",0.8,3,{"$f":"'Outputs Monthly'!E18+'Outputs Monthly'!E22+'Outputs Monthly'!E26","v":2352},{"$f":"'Outputs Monthly'!E30+'Outputs Monthly'!E34+'Outputs Monthly'!E38","v":2294},{"$f":"'Outputs Monthly'!E42+'Outputs Monthly'!E46+'Outputs Monthly'!E50","v":0},{"$f":"'Outputs Monthly'!E54+'Outputs Monthly'!E58+'Outputs Monthly'!E62","v":0},4646,null,null,null,null,null,null,null,null,null,"Unfunded Mandates - External"]
[null,null,"# within 3 business days",null,null,2323,2213,null,null,4536,null,null,null,null,null,null,null,null,null,"Systems/Conversions - Internal"]
[null,null,"% mtg level",null,null,{"$f":"F15/F14","v":0.98767006802721091},{"$f":"G15/G14","v":0.96469049694856146},{"$f":"H15/H14","v":{"$error":"#DIV/0!"}},{"$f":"I15/I14","v":{"$error":"#DIV/0!"}},{"$f":"J15/J14","v":0.97632371932845463},null,null,null,null,null,null,null,null,null,"Systems/Conversions - External"]
["Juvenile Delinquency (juveniles)",null,"Total # of juveniles",0.8,2,{"$f":"'Outputs Monthly'!F18+'Outputs Monthly'!F22+'Outputs Monthly'!F26","v":403},{"$f":"'Outputs Monthly'!F30+'Outputs Monthly'!F34+'Outputs Monthly'!F38","v":444},{"$f":"'Outputs Monthly'!F42+'Outputs Monthly'!F46+'Outputs Monthly'!F50","v":0},{"$f":"'Outputs Monthly'!F54+'Outputs Monthly'!F58+'Outputs Monthly'!F62","v":0},847]
[null,null,"# within 2 business days",null,null,384,430,null,null,814]
[null,null,"% mtg level",null,null,{"$f":"F18/F17","v":0.95285359801488834},{"$f":"G18/G17","v":0.96846846846846846},{"$f":"H18/H17","v":{"$error":"#DIV/0!"}},{"$f":"I18/I17","v":{"$error":"#DIV/0!"}},{"$f":"J18/J17","v":0.96103896103896103},null,null,null,null,null,null,null,null,null,null,null,null,null,null,null,null,null,null,null,null,null,null,null,null,null,null,null,null,null,null,null,null,null,null,null,null,null,null,null,null,null,null,null,null,null,null,null,null,null,null,null,null,null,null,null,null,null,null,null,null,null,null,null,null,null,null,null,null,null,null,null,null,null,null,null,null,null,null,null,null,null,null,null,null,null,null,null,null,null,null,null,null,null,null,null,null,null,null,null,null,null,null,null,null,null,null,null,null,null,null,null,null,null,null,null,null,null,null,null,null,null,null,null,null,null,null,null,null,null,null,null,null,null,null,null,null,null,null,null,null,null,null,null,null,null,null,null,null,null,null,null,null,null,null,null,null,null,null,null,null,null,null,null,null,null,null,null,null,null,null,null,null,null,null,null,null,null,null,null,null,null,null,null,null,null,null,null,null,null,null,null,null,null,null,null,null,null,null,null,null,null,null,null,null,null,null,null,null,null,null,null,null,null,null,null,null,null,null,null,null,null,null,null,null,null,null,null,null,null,null,null,null,null,null,null,null,null,null,null,null,null,null,null,null,null,null,null,null,null,null,null,null,null,null,null,null,null,null,null,null,null,null,null,null,null,null,null,null,null,null,null,null,null,null,null,null,null,null,null,null,null,null,null,null,null,null,null,null,null,null,null,null,null,null,null,null,null,null,null,null,null,null,null,null,null,null,null,null,null,null,null,null,null,null,null,null,null,null,null,null,null,null,null,null,null,null,null,null,null,null,null,null,null,null,null,null,null,null,null,null,null,null,null,null,null,null,null,null,null,null,null,null,null,null,null,null,null,null,null,null,null,null,null,null,null,null,null,null,null,null,null,null,null,null,null,null,null,null,null,null,null,null,null,null,null,null,null,null,null,null,null,null,null,null,null,null,null,null,null,null,null,null,null,null,null,null,null,null,null,null,null,null,null,null,null,null,null,null,null,null,null,null,null,null,null,null,null,null,null,null,null,null,null,null,null,null,null,null,null,null,null,null,null,null,null,null,null,null,null,null,null,null,null,null,null,null,null,null,null,null,null,null,null,null,null,null,null,null,null,null,null,null,null,null,null,null,null,null,null,null,null,null,null,null,null,null,null,null,null,null,null,null,null,null,null,null,null,null,null,null,null,null,null,null,null,null,null,null,null,null,null,null,null,null,null,null,null,null,null,null,null,null,null,null,null,null,null,null,null,null,null,null,null,null,null,null,null,null,null,null,null,null,null,null,null,null,null,null,null,null,null,null,null,null,null,null,null,null,null,null,null,null,null,null,null,null,null,null,null,null,null,null,null,null,null,null,null,null,null,null,null,null,null,null,null,null,null,null,null,null,null,null,null,null,null,null,null,null,null,null,null,null,null,null,null,null,null,null,null,null,null,null,null,null,null,null,null,null,null,null,null,null,null,null,null,null,null,null,null,null,null,null,null,null,null,null,null,null,null,null,null,null,null,null,null,null,null,null,null,null,null,null,null,null,null,null,null,null,null,null,null,null,null,null,null,null,null,null,null,null,null,null,null,null,null,null,null,null,null,null,null,null,null,null,null,null,null,null,null,null,null,"PABS4.0"]
["Traffic (UTC)",null,"Total # UTC",0.8,3,{"$f":"'Outputs Monthly'!G18+'Outputs Monthly'!G22+'Outputs Monthly'!G26","v":1483},{"$f":"'Outputs Monthly'!G30+'Outputs Monthly'!G34+'Outputs Monthly'!G38","v":1635},{"$f":"'Outputs Monthly'!G42+'Outputs Monthly'!G46+'Outputs Monthly'!G50","v":0},{"$f":"'Outputs Monthly'!G54+'Outputs Monthly'!G58+'Outputs Monthly'!G62","v":0},3118]
[null,null,"# within 3 business days",null,null,1389,1494,null,null,2883]
[null,null,"% mtg level",null,null,{"$f":"F21/F20","v":0.93661496965610247},{"$f":"G21/G20","v":0.91376146788990831},{"$f":"H21/H20","v":{"$error":"#DIV/0!"}},{"$f":"I21/I20","v":{"$error":"#DIV/0!"}},{"$f":"J21/J20","v":0.92463117382937776}]
["B","Civil"]
["Circuit (cases)",null,"Total # of cases",0.8,2,{"$f":"'Outputs Monthly'!J18+'Outputs Monthly'!J22+'Outputs Monthly'!J26","v":1033},{"$f":"'Outputs Monthly'!J30+'Outputs Monthly'!J34+'Outputs Monthly'!J38","v":1071},{"$f":"'Outputs Monthly'!J42+'Outputs Monthly'!J46+'Outputs Monthly'!J50","v":0},{"$f":"'Outputs Monthly'!J54+'Outputs Monthly'!J58+'Outputs Monthly'!J62","v":0},2104]
[null,null,"# within 2 business days",null,null,932,978,null,null,1910]
[null,null,"% mtg level",null,null,{"$f":"F25/F24","v":0.90222652468538234},{"$f":"G25/G24","v":0.91316526610644255},{"$f":"H25/H24","v":{"$error":"#DIV/0!"}},{"$f":"I25/I24","v":{"$error":"#DIV/0!"}},{"$f":"J25/J24","v":0.90779467680608361}]
["County (cases)",null,"Total # of cases",0.8,2,{"$f":"'Outputs Monthly'!K18+'Outputs Monthly'!K22+'Outputs Monthly'!K26","v":1977},{"$f":"'Outputs Monthly'!K30+'Outputs Monthly'!K34+'Outputs Monthly'!K38","v":1935},{"$f":"'Outputs Monthly'!K42+'Outputs Monthly'!K46+'Outputs Monthly'!K50","v":0},{"$f":"'Outputs Monthly'!K54+'Outputs Monthly'!K58+'Outputs Monthly'!K62","v":0},3912]
[null,null,"# within 2 business days",null,null,1963,1916,null,null,3879]
[null,null,"% mtg level",null,null,{"$f":"F28/F27","v":0.99291856348002028},{"$f":"G28/G27","v":0.99018087855297154},{"$f":"H28/H27","v":{"$error":"#DIV/0!"}},{"$f":"I28/I27","v":{"$error":"#DIV/0!"}},{"$f":"J28/J27","v":0.9915644171779141}]
["Traffic (UTC)",null,"Total # UTC",0.8,4,{"$f":"'Outputs Monthly'!L18+'Outputs Monthly'!L22+'Outputs Monthly'!L26","v":9839},{"$f":"'Outputs Monthly'!L30+'Outputs Monthly'!L34+'Outputs Monthly'!L38","v":10969},{"$f":"'Outputs Monthly'!L42+'Outputs Monthly'!L46+'Outputs Monthly'!L50","v":0},{"$f":"'Outputs Monthly'!L54+'Outputs Monthly'!L58+'Outputs Monthly'!L62","v":0},20808]
[null,null,"# within 4 business days",null,null,9769,10857,null,null,20626]
[null,null,"% mtg level",null,null,{"$f":"F31/F30","v":0.992885455839008},{"$f":"G31/G30","v":0.9897894065092534},{"$f":"H31/H30","v":{"$error":"#DIV/0!"}},{"$f":"I31/I30","v":{"$error":"#DIV/0!"}},{"$f":"J31/J30","v":0.99125336409073428}]
["Circuit Probate (cases)",null,"Total # of cases",0.8,2,{"$f":"'Outputs Monthly'!M18+'Outputs Monthly'!M22+'Outputs Monthly'!M26","v":1199},{"$f":"'Outputs Monthly'!M30+'Outputs Monthly'!M34+'Outputs Monthly'!M38","v":1231},{"$f":"'Outputs Monthly'!M42+'Outputs Monthly'!M46+'Outputs Monthly'!M50","v":0},{"$f":"'Outputs Monthly'!M54+'Outputs Monthly'!M58+'Outputs Monthly'!M62","v":0},2430]
[null,null,"# within 2 business days",null,null,1148,1214,null,null,2362]
[null,null,"% mtg level",null,null,{"$f":"F34/F33","v":0.95746455379482898},{"$f":"G34/G33","v":0.98619008935824537},{"$f":"H34/H33","v":{"$error":"#DIV/0!"}},{"$f":"I34/I33","v":{"$error":"#DIV/0!"}},{"$f":"J34/J33","v":0.97201646090534977}]
["Family (cases)",null,"Total # of cases",0.8,3,{"$f":"'Outputs Monthly'!N18+'Outputs Monthly'!N22+'Outputs Monthly'!N26","v":1612},{"$f":"'Outputs Monthly'!N30+'Outputs Monthly'!N34+'Outputs Monthly'!N38","v":1709},{"$f":"'Outputs Monthly'!N42+'Outputs Monthly'!N46+'Outputs Monthly'!N50","v":0},{"$f":"'Outputs Monthly'!N54+'Outputs Monthly'!N58+'Outputs Monthly'!N62","v":0},3321]
[null,null,"# within 3 business days",null,null,1604,1699,null,null,3303]
[null,null,"% mtg level",null,null,{"$f":"F37/F36","v":0.99503722084367241},{"$f":"G37/G36","v":0.99414862492685785},{"$f":"H37/H36","v":{"$error":"#DIV/0!"}},{"$f":"I37/I36","v":{"$error":"#DIV/0!"}},{"$f":"J37/J36","v":0.99457994579945797}]
["Juvenile Dependency (cases)",null,"Total # of cases",0.8,2,{"$f":"'Outputs Monthly'!O18+'Outputs Monthly'!O22+'Outputs Monthly'!O26","v":76},{"$f":"'Outputs Monthly'!O30+'Outputs Monthly'!O34+'Outputs Monthly'!O38","v":98},{"$f":"'Outputs Monthly'!O42+'Outputs Monthly'!O46+'Outputs Monthly'!O50","v":0},{"$f":"'Outputs Monthly'!O54+'Outputs Monthly'!O58+'Outputs Monthly'!O62","v":0},174]
[null,null,"# within 2 business days",null,null,76,98,null,null,174]
[null,null,"% mtg level",null,null,{"$f":"F40/F39","v":1},{"$f":"G40/G39","v":1},{"$f":"H40/H39","v":{"$error":"#DIV/0!"}},{"$f":"I40/I39","v":{"$error":"#DIV/0!"}},{"$f":"J40/J39","v":1}]
[]
[]
["Timeliness Measures #2: Annual Projected % of docket entries entered within X business days after clock in/action taken date."]
[null,null,null,"Performance Measure Standard","# of business days","10/1/15 - 12/31/15","1/1/16 - 3/31/16","4/1/16 - 6/30/16","7/1/16 - 9/30/16",null,{"$f":"F45","v":"10/1/15 - 12/31/15"},null,{"$f":"G45","v":"1/1/16 - 3/31/16"},null,{"$f":"H45","v":"4/1/16 - 6/30/16"},null,{"$f":"I45","v":"7/1/16 - 9/30/16"}]
["A","Criminal",null,null,38991,{"$f":"F10","v":"1st Quarter"},{"$f":"G10","v":"2nd Quarter"},"3rd Quarter","4th Quarter","Year-to-Date","Reason Code","Actions to Improve","Reason Code","Actions to Improve","Reason Code","Actions to Improve","Reason Code","Actions to Improve"]
["Circuit (defendants)",null,"Total # of docket entries",0.8,3,74749,81204,null,null,{"$f":"SUM(F47:I47)","v":155953}]
[null,null,"# within 3 business days",null,null,73630,79168,null,null,{"$f":"SUM(F48:I48)","v":152798}]
[null,null,"% mtg level",null,null,{"$f":"F48/F47","v":0.98502990006555269},{"$f":"G48/G47","v":0.97492734348061671},{"$f":"H48/H47","v":{"$error":"#DIV/0!"}},{"$f":"I48/I47","v":{"$error":"#DIV/0!"}},{"$f":"J48/J47","v":0.97976954595294741}]
["County (defendants)",null,"Total # of docket entries",0.8,3,38447,41600,null,null,80047]
[null,null,"# within 3 business days",null,null,37832,40409,null,null,78241]
[null,null,"% mtg level",null,null,{"$f":"F51/F50","v":0.98400395349442094},{"$f":"G51/G50","v":0.97137019230769228},{"$f":"H51/H50","v":{"$error":"#DIV/0!"}},{"$f":"I51/I50","v":{"$error":"#DIV/0!"}},{"$f":"J51/J50","v":0.97743825502517268}]
["Juvenile Delinquency (juveniles)",null,"Total # of docket entries",0.8,3,16689,17452,null,null,34141]
[null,null,"# within 3 business days",null,null,16632,17280,null,null,33912]
[null,null,"% mtg level",null,null,{"$f":"F54/F53","v":0.99658457666726585},{"$f":"G54/G53","v":0.99014439605775839},{"$f":"H54/H53","v":{"$error":"#DIV/0!"}},{"$f":"I54/I53","v":{"$error":"#DIV/0!"}},{"$f":"J54/J53","v":0.99329252218739927}]
["Traffic (UTC)",null,"Total # of docket entries",0.8,3,29588,32413,null,null,62001]
[null,null,"# within 3 business days",null,null,29000,31344,null,null,60344]
[null,null,"% mtg level",null,null,{"$f":"F57/F56","v":0.98012707854535619},{"$f":"G57/G56","v":0.96701940579397161},{"$f":"H57/H56","v":{"$error":"#DIV/0!"}},{"$f":"I57/I56","v":{"$error":"#DIV/0!"}},{"$f":"J57/J56","v":0.97327462460282899}]
["B","Civil"]
["Circuit (cases)",null,"Total # of docket entries",0.8,3,49939,48803,null,null,98742]
[null,null,"# within 3 business days",null,null,49388,48105,null,null,97493]
[null,null,"% mtg level",null,null,{"$f":"F61/F60","v":0.98896653917779687},{"$f":"G61/G60","v":0.98569760055734279},{"$f":"H61/H60","v":{"$error":"#DIV/0!"}},{"$f":"I61/I60","v":{"$error":"#DIV/0!"}},{"$f":"J61/J60","v":0.98735087399485533}]
["County (cases)",null,"Total # of docket entries",0.8,3,21702,21885,null,null,43587]
[null,null,"# within 3 business days",null,null,21429,21342,null,null,42771]
[null,null,"% mtg level",null,null,{"$f":"F64/F63","v":0.987420514238319},{"$f":"G64/G63","v":0.97518848526387936},{"$f":"H64/H63","v":{"$error":"#DIV/0!"}},{"$f":"I64/I63","v":{"$error":"#DIV/0!"}},{"$f":"J64/J63","v":0.98127882166701086}]
["Traffic (UTC)",null,"Total # of docket entries",0.8,4,21581,22078,null,null,43659]
[null,null,"# within 4 business days",null,null,20990,21314,null,null,42304]
[null,null,"% mtg level",null,null,{"$f":"F67/F66","v":0.97261480005560441},{"$f":"G67/G66","v":0.96539541625147207},{"$f":"H67/H66","v":{"$error":"#DIV/0!"}},{"$f":"I67/I66","v":{"$error":"#DIV/0!"}},{"$f":"J67/J66","v":0.96896401658306419}]
["Circuit Probate (cases)",null,"Total # of docket entries",0.8,3,17439,19449,null,null,36888]
[null,null,"# within 3 business days",null,null,17322,19314,null,null,36636]
[null,null,"% mtg level",null,null,{"$f":"F70/F69","v":0.99329089970755202},{"$f":"G70/G69","v":0.99305876908838497},{"$f":"H70/H69","v":{"$error":"#DIV/0!"}},{"$f":"I70/I69","v":{"$error":"#DIV/0!"}},{"$f":"J70/J69","v":0.9931685100845804}]
["Family (cases)",null,"Total # of docket entries",0.8,3,38357,39350,null,null,77707]
[null,null,"# within 3 business days",null,null,38007,38406,null,null,76413]
[null,null,"% mtg level",null,null,{"$f":"F73/F72","v":0.99087519879031205},{"$f":"G73/G72","v":0.97601016518424399},{"$f":"H73/H72","v":{"$error":"#DIV/0!"}},{"$f":"I73/I72","v":{"$error":"#DIV/0!"}},{"$f":"J73/J72","v":0.98334770355309042}]
["Juvenile Dependency (juveniles)",null,"Total # of docket entries",0.8,3,7012,7783,null,null,14795]
[null,null,"# within 3 business days",null,null,7002,7740,null,null,14742]
[null,null,"% mtg level",null,null,{"$f":"F76/F75","v":0.9985738733599544},{"$f":"G76/G75","v":0.99447513812154698},{"$f":"H76/H75","v":{"$error":"#DIV/0!"}},{"$f":"I76/I75","v":{"$error":"#DIV/0!"}},{"$f":"J76/J75","v":0.99641770868536672}]
[]
[]
[null,"Notes:"]
[null,"1.) Reason Codes for Timeliness have been updated for CFY 2015/2016 to include Internal and External qualifiers. Use the \"Comments / Action to Improve\" field to further explain why the standard was not met for an \"External\" or Internal\" reason. "]
[null,null," If the the reason was \"Internal\", include an expected timeframe the reason will be corrected."]
[null,"2 Cases/Defendants Output numbers are imported from the Outputs Monthly tab of this workbook."]

{"sheet":"CAP Count Summary","index":2,"n_rows":70,"n_cols":44,"rows_kept":70,"cut":false,"hidden":true,"merged":[[0,22,0,40]]}
["County","TIMELINESS STANDARD ONE (New Cases Opened)",null,null,null,null,null,null,null,null,null,null,null,null,null,null,null,null,null,null,null,null,"TIMELINESS STANDARD TWO (Docket Entries Processed)",null,null,null,null,null,null,null,null,null,null,null,null,null,null,null,null,null,null,null,null,"Sent Date"]
[null,"Circuit Criminal Reason","Improve Action","County Criminal Reason","Improve Action","Juvenile Delinquency Reason ","Improve Action","Criminal Traffic Reason ","Improve Action","Circuit Civil Reason","Improve Action","County Civil Reason","Improve Action","Civil Traffic Reason","Improve Action","Probate Reason","Improve Action","Family Reason","Improve Action","Juvenile Dependency Reason","Improve Action",null,"Circuit Criminal Reason","Improve Action","County Criminal Reason","Improve Action","Juvenile Delinquency Reason","Improve Action","Criminal Traffic Reason","Improve Action","Circuit Civil Reason","Improve Action","County Civil Reason","Improve Action","Civil Traffic Reason","Improve Action","Probate Reason","Improve Action","Family Reason","Improve Action","Juvenile Dependency Reason ","Improve Action"]
[]
["Alachua",null,null,null,null,null,null,null,null,null,null,null,null,null,null,null,null,null,null,null,null,null,null,null,null,null,null,null,null,null,null,null,null,null,null,null,null,null,null,null,null,null,null,20140220]
["Baker",null,null,null,null,null,null,null,null,null,null,null,null,null,null,null,null,null,null,null,null,null,null,null,null,null,null,null,null,null,null,null,null,null,null,null,null,null,null,null,null,null,null,20140207]
["Bay",null,null,null,null,null,null,null,null,null,null,null,null,null,null,null,null,null,null,null,null,null,null,null,null,null,null,null,null,null,null,null,null,null,null,null,null,null,null,null,null,null,null,20140218]
["Bradford",null,null,null,null,null,null,null,null,null,null,null,null,null,null,null,null,null,null,null,null,null,null,null,null,null,"Procedural","We are a small county with several Supreme Court death warrant appeals that had priority. ",null,null,null,null,null,null,null,null,null,null,null,null,"Procedural","We are a small county with several Supreme Court death warrant appeals that had priority. ",null,20140218]
["Brevard",null,null,null,null,null,null,null,null,null,null,null,null,null,null,null,null,null,null,null,null,null,null,null,null,null,null,null,null,null,null,null,null,null,null,null,null,null,null,null,null,null,null,20140218]
["Broward",null,null,null,null,null,null,null,null,null,null,null,null,null,null,"E-Filing","A high percentage of cases are rejected. When cases are resubmitted, the calculation for timeliness is based on the original file date.",null,null,null,null,null,null,null,null,null,null,null,null,null,null,null,null,null,null,null,null,null,null,null,"Systems","The division is still adjusting to new case maintenance system. E-filing should assist with improving the timeliness.",null,20140218]
["Calhoun",null,null,null,null,null,null,null,null,null,null,null,null,null,null,null,null,null,null,null,null,null,null,null,null,null,null,null,null,null,null,null,null,null,null,null,null,null,null,null,null,null,null,20140217]
["Charlotte",null,null,null,null,null,null,null,null,null,null,null,null,null,null,null,null,null,null,null,null,null,null,null,null,null,null,null,null,null,null,null,null,null,null,null,null,null,null,null,null,null,null,20140219]
["Citrus",null,null,null,null,null,null,null,null,null,null,null,null,null,null,null,null,null,null,null,null,null,null,null,null,null,null,null,null,null,null,null,null,null,null,null,null,null,null,null,null,null,null,20140206]
["Clay",null,null,null,null,null,null,null,null,null,null,null,null,null,null,null,null,null,null,null,null,null,null,null,null,null,null,null,null,null,null,null,null,null,null,null,null,null,null,null,null,null,null,20140218]
["Collier",null,null,null,null,null,null,null,null,null,null,null,null,null,null,null,null,null,null,null,null,null,null,null,null,null,null,null,null,null,null,null,null,null,null,null,null,null,null,null,null,null,null,20140220]
["Columbia",null,null,null,null,null,null,null,null,null,null,null,null,null,null,null,null,null,null,"Staffing - Insufficient Personnel","This is a one employee department. Employees in other departments will be used to cover this when employee is out.",null,null,null,null,null,null,null,null,null,null,null,null,null,null,null,null,null,null,null,null,null,null,20140219]
["Dade",null,null,"Staffing - Training Required","Training efforts have been completed. We anticipate rate will improve in the next quarter.",null,null,null,null,null,null,null,null,null,null,null,null,null,null,null,null,null,null,null,null,null,null,null,null,null,null,null,null,null,null,null,null,null,null,null,null,null,null,20140219]
["Desoto",null,null,null,null,null,null,null,null,null,null,null,null,null,null,null,null,null,null,null,null,null,null,null,null,null,null,null,null,null,null,null,null,null,null,null,null,null,null,null,null,null,null,20140206]
["Dixie"]
["Duval",null,null,null,null,null,null,null,null,null,null,null,null,null,null,null,null,null,null,null,null,null,null,null,null,null,null,null,null,null,null,null,null,null,null,null,null,null,null,null,null,null,null,20140225]
["Escambia",null,null,null,null,null,null,null,null,null,null,null,null,null,null,null,null,null,null,null,null,null,null,null,null,null,"Staffing - Training Required","Additional cross training will occur immediatley",null,null,null,null,null,null,null,null,null,null,null,null,null,null,null,20140210]
["Flagler",null,null,null,null,null,null,null,null,null,null,null,null,null,null,null,null,null,null,null,null,null,null,null,null,null,null,null,null,null,null,null,null,null,null,null,null,null,null,null,null,null,null,20140214]
["Franklin",null,null,null,null,null,null,null,null,null,null,null,null,null,null,null,null,null,null,null,null,null,null,null,null,null,null,null,null,null,null,null,null,null,null,null,null,null,null,null,null,null,null,20140212]
["Gadsden",null,null,null,null,null,null,null,null,"E-Filing","As the problems get worked out this will improve.",null,null,null,null,null,null,null,null,null,null,null,null,null,null,null,null,null,null,null,null,null,null,null,null,null,null,null,null,null,null,null,null,20140218]
["Gilchrist"]
["Glades",null,null,null,null,null,null,null,null,null,null,null,null,null,null,null,null,null,null,null,null,null,null,null,null,null,null,null,null,null,null,null,null,null,"Systems","Clericus was implemented 9/27/2013 and we are still learning the system.",null,null,null,null,null,null,null,20140224]
["Gulf",null,null,null,null,null,null,null,null,null,null,null,null,null,null,null,null,null,null,null,null,null,null,null,null,null,null,null,null,null,null,null,null,null,null,null,null,null,null,null,null,null,null,20140220]
["Hamilton",null,null,null,null,null,null,null,null,null,null,null,null,null,null,null,null,null,null,null,null,null,null,null,null,null,null,null,null,null,null,null,null,null,null,null,null,null,null,null,null,null,null,20140211]
["Hardee",null,null,null,null,null,null,null,null,null,null,null,null,null,null,null,null,null,null,null,null,null,null,null,null,null,null,null,null,null,null,null,null,null,null,null,null,null,null,null,null,null,null,20140220]
["Hendry",null,null,null,null,null,null,null,null,null,null,null,null,null,null,null,null,null,null,null,null,null,null,null,null,null,null,null,null,null,null,null,null,null,null,null,null,null,null,null,null,null,null,20140219]
["Hernando",null,null,null,null,null,null,null,null,null,null,null,null,null,null,null,null,null,null,null,null,null,null,null,null,null,null,null,null,null,null,null,null,null,null,null,null,null,null,null,null,null,null,20140220]
["Highlands",null,null,null,null,null,null,null,null,null,null,null,null,null,null,null,null,null,null,null,null,null,null,null,null,null,null,null,null,null,null,null,null,null,null,null,null,null,null,null,null,null,null,20140206]
["Hillsborough",null,null,null,null,null,null,null,null,null,null,null,null,null,null,null,null,null,null,null,null,null,null,null,null,null,null,null,null,null,null,null,null,null,null,null,null,null,null,null,null,null,null,20140220]
["Holmes",null,null,null,null,null,null,null,null,null,null,null,null,null,null,null,null,null,null,null,null,null,null,null,null,null,null,null,null,null,null,null,null,null,null,null,null,null,null,null,null,null,null,20140219]
["Indian River",null,null,null,null,null,null,null,null,null,null,null,null,null,null,null,null,null,null,null,null,null,null,null,null,null,null,null,null,null,null,null,null,null,null,null,null,null,null,null,null,null,null,20140208]
["Jackson",null,null,null,null,null,null,null,null,null,null,null,null,null,null,null,null,null,null,null,null,null,null,null,null,null,null,null,null,null,null,null,null,null,null,null,null,null,null,null,null,null,null,20140214]
["Jefferson",null,null,null,null,null,null,null,null,null,null,null,null,null,null,null,null,null,null,null,null,null,null,null,null,null,null,null,null,null,null,null,null,null,null,null,null,null,null,null,null,null,null,20140210]
["Lafayette",null,null,null,null,null,null,null,null,null,null,null,null,null,null,null,null,null,null,null,null,null,null,null,null,null,null,null,null,null,null,null,null,null,null,null,null,null,null,null,null,null,null,20140219]
["Lake",null,null,null,null,null,null,null,null,null,null,null,null,null,null,null,null,null,null,null,null,null,null,null,null,null,null,null,null,null,null,null,null,null,null,null,null,null,null,null,null,null,null,20140219]
["Lee",null,null,null,null,null,null,null,null,null,null,null,null,null,null,null,null,null,null,null,null,null,null,null,null,null,null,null,null,null,null,null,null,null,null,null,null,null,null,null,null,null,null,20140218]
["Leon",null,null,null,null,null,null,null,null,null,null,null,null,null,null,null,null,null,null,null,null,null,null,null,null,null,null,null,null,null,null,null,null,null,null,null,null,null,null,null,null,null,null,20140227]
["LEVY",null,null,null,null,null,null,null,null,null,null,null,null,null,null,null,null,null,null,null,null,null,null,null,null,null,null,null,null,null,null,null,null,null,null,null,null,null,null,null,null,null,null,20140217]
["Liberty","Staffing - Training Required","Due to the sudden retirement of a 30 year employee, we are training new staff.","Staffing - Training Required","Due to the sudden retirement of a 30 year employee, we are training new staff.",null,null,null,null,null,null,null,null,null,null,null,null,null,null,null,null,null,null,null,null,null,"Staffing - Training Required","Due to the sudden retirement of a 30 year employee, we are training new staff.",null,null,null,null,null,null,null,null,"Staffing - Training Required","Due to the sudden retirement of a 30 year employee, we are training new staff.",null,null,null,null,null,20140211]
["Madison",null,null,null,null,null,null,null,null,null,null,null,null,null,null,null,null,null,null,null,null,null,null,null,null,null,null,null,null,null,null,null,null,null,null,null,null,null,null,null,null,null,null,20140214]
["Manatee",null,null,null,null,null,null,null,null,null,null,null,null,null,null,null,null,null,null,null,null,null,null,null,null,null,null,null,null,null,null,null,null,null,null,null,null,null,null,null,null,null,null,20140220]
["Marion",null,null,null,null,null,null,"Procedural","Electornic citations led to errors in entering zeros as O's and O's as zeros in the citation number. We have asked the agencies to use a / thru zeros and staff to be more careful in keying.",null,null,null,null,null,null,null,null,null,null,null,null,null,null,null,null,null,null,null,null,null,"E-Filing","Established a mandatory 1.5 hrs/day for all civil staff to process efilings",null,null,null,null,null,null,null,null,null,null,null,20140211]
["Martin",null,null,null,null,null,null,null,null,null,null,null,null,null,null,null,null,null,null,null,null,null,null,null,null,null,null,null,null,null,null,null,null,null,null,null,null,null,null,null,null,null,null,20140217]
["Monroe",null,null,null,null,null,null,null,null,null,null,null,null,null,null,null,null,null,null,null,null,null,null,null,null,null,null,null,null,null,null,null,null,null,null,null,null,null,null,null,null,null,null,20140213]
["NASSAU",null,null,null,null,null,null,null,null,null,null,null,null,null,null,null,null,null,null,null,null,null,null,null,null,null,null,null,null,null,null,null,null,null,null,null,null,null,null,null,null,null,null,20140220]
["Okaloosa",null,null,null,null,null,null,null,null,null,null,null,null,null,null,null,null,null,null,null,null,null,null,null,null,null,null,null,null,null,null,null,null,null,null,null,null,null,null,null,null,null,null,20140211]
["Okeechobee",null,null,null,null,null,null,null,null,null,null,null,null,null,null,null,null,null,null,null,null,null,null,null,null,null,null,null,null,null,null,null,null,null,null,null,null,null,null,null,null,null,null,20140217]
["Orange",null,null,null,null,null,null,null,null,null,null,null,null,null,null,null,null,null,null,null,null,null,null,null,null,null,null,null,null,null,null,null,null,null,null,null,null,null,null,null,null,null,null,20140219]
["Osceola",null,null,null,null,null,null,null,null,null,null,null,null,"Systems","We experienced  problems entering traffic citations with our new Case Management System.  These problems are being corrected in our next release that will go live on 1/21/2014.  Also, in February we go live with Ecitations and this will help speed up the process.  ",null,null,null,null,null,null,null,null,null,null,null,null,null,null,null,null,null,null,null,null,null,null,null,null,null,null,null,null,20140219]
["Palm Beach",null,null,null,null,null,null,null,null,null,null,null,null,null,null,null,null,null,null,null,null,null,null,null,null,null,null,null,null,null,null,null,null,null,null,null,null,null,null,null,null,null,null,20140213]
["Pasco",null,null,null,null,null,null,null,null,null,null,null,null,null,null,null,null,null,null,null,null,null,null,null,null,null,null,null,null,null,null,null,null,null,null,null,null,null,null,null,null,null,null,20140220]
["Pinellas",null,null,null,null,null,null,null,null,null,null,null,null,null,null,null,null,null,null,null,null,null,null,null,null,null,null,null,null,null,null,null,null,null,null,null,null,null,null,null,null,null,null,20140220]
["Polk",null,null,null,null,null,null,null,null,null,null,null,null,null,null,"Procedural","Standards reviewed with staff when processing paper filings. eFiled cases were the focus when it should've been paper & electronic equally. Cases will be monitored more closely by management.",null,null,null,null,null,null,null,null,null,null,null,null,null,null,null,null,null,null,null,null,null,null,null,null,null,null,20140220]
["Putnam",null,null,null,null,null,null,null,null,null,null,"Staffing - Insufficient Personnel","Incidental - Bereavement & Sick Leave",null,null,"Staffing - Training Required","Reorganizing Office Staff at this Time",null,null,null,null,null,null,null,null,null,null,null,null,null,"Staffing - Insufficient Personnel","Incidental - Bereavement & Sick Leave","Staffing - Insufficient Personnel","Incidental - Bereavement & Sick Leave",null,null,"Staffing - Insufficient Personnel","Incidental - Bereavement & Sick Leave",null,null,null,null,null,20140218]
["Santa Rosa",null,null,null,null,null,null,null,null,null,null,null,null,null,null,null,null,null,null,null,null,null,null,null,null,null,null,null,null,null,null,null,null,null,null,null,null,null,null,null,null,null,null,20140219]
["Sarasota",null,null,null,null,null,null,null,null,null,null,null,null,null,null,null,null,null,null,null,null,null,null,null,null,null,null,null,null,null,null,null,null,null,null,null,null,null,null,null,null,null,null,20140219]
["Seminole",null,null,null,null,null,null,null,null,null,null,null,null,null,null,null,null,null,null,null,null,null,null,null,null,null,null,null,null,null,null,null,null,null,null,null,null,null,null,null,null,null,null,20140207]
["St. Johns",null,null,null,null,null,null,null,null,null,null,null,null,null,null,null,null,null,null,null,null,null,null,null,null,null,null,null,null,null,null,null,null,null,null,null,null,null,null,null,null,null,null,20140214]
["St. Lucie",null,null,null,null,null,null,null,null,null,null,null,null,null,null,null,null,null,null,null,null,null,null,null,null,null,null,null,null,null,null,null,null,null,null,null,null,null,null,null,null,null,null,20140210]
["Sumter","Staffing - Insufficient Personnel","Additional staff being hired to work in felony division to cover increased filings",null,null,null,null,null,null,null,null,null,null,null,null,null,null,null,null,null,null,null,null,null,null,null,null,null,null,null,null,null,null,null,null,null,null,null,null,null,null,null,null,20140210]
["Suwannee",null,null,null,null,null,null,null,null,null,null,null,null,null,null,null,null,null,null,null,null,null,null,null,"Staffing - Training Required","Additional training on meeting Performance Measures","Staffing - Training Required","Additional training on meeting Performance Measures","Staffing - Training Required","Additional training on meeting Performance Measures",null,null,null,null,null,null,null,null,null,null,null,null,null,20140217]
["Taylor",null,null,null,null,null,null,null,null,"E-Filing","Correct issues of filings not moving from eportal to CMS",null,null,null,null,null,null,null,null,null,null,null,null,null,null,null,null,null,null,null,null,null,null,null,null,null,null,null,null,null,null,null,null,20140211]
["Union",null,null,null,null,null,null,null,null,null,null,null,null,null,null,null,null,null,null,null,null,null,null,null,null,null,null,null,null,null,null,null,null,null,null,null,null,null,null,null,null,null,null,20140219]
["Volusia",null,null,null,null,null,null,null,null,null,null,null,null,null,null,null,null,null,null,null,null,null,null,null,null,null,null,null,null,null,null,null,null,null,null,null,null,null,null,null,null,null,null,20140218]
["Wakulla",null,null,null,null,null,null,null,null,null,null,null,null,null,null,null,null,null,null,null,null,null,null,null,null,null,null,null,null,null,null,null,null,null,null,null,null,null,null,null,null,null,null,20140214]
["Walton",null,null,null,null,null,null,null,null,null,null,null,null,null,null,null,null,null,null,null,null,null,null,null,null,null,null,null,null,null,null,null,null,null,null,null,null,null,null,null,null,null,null,20140218]
["Washington",null,null,null,null,null,null,null,null,null,null,null,null,null,null,null,null,null,null,null,null,null,"Other","Coversion, server, and move downtime",null,null,null,null,null,null,null,null,null,null,null,null,null,null,null,null,null,null,null,20140217]

{"sheet":"Action Plan Summary","index":3,"n_rows":92,"n_cols":7,"rows_kept":92,"cut":false,"hidden":false,"merged":[[4,3,4,4],[5,3,5,4],[6,3,6,4],[9,0,12,0],[13,0,16,0],[17,0,20,0],[21,0,24,0],[25,0,28,0],[29,0,32,0],[33,0,36,0],[37,0,40,0],[41,0,44,0],[52,0,55,0],[56,0,59,0],[60,0,63,0],[45,0,48,0],[88,0,91,0],[64,0,67,0],[68,0,71,0],[72,0,75,0],[76,0,79,0],[80,0,83,0],[84,0,87,0]]}
[]
["County Fiscal Year 2015 - 2016"]
["Timeliness Quarterly Action Plan Form for CCOC"]
[]
[null,null,"Report Month of (Quarter Ending): ",{"$f":"'Outputs Monthly'!D6:E6","v":"Mar"},null,"Contact:"]
[null,null,"Version #: ",{"$f":"'Outputs Monthly'!D7:E7","v":2},null,"Telephone:"]
[null,null,"County: ",{"$f":"'Outputs Monthly'!D8:E8","v":"Brevard"},null,"E-mail:"]
[]
[" \nTimeliness Measeure # 1","Quarter","CCOC Standard",{"$f":"'Timeliness Quarterly'!E9","v":"# Of Business Days"},"Clerk Performance","Reason Code","Current Actions to Improve"]
["Circuit Criminal",{"$f":"'Timeliness Quarterly'!$F$9","v":"10/1/15 - 12/31/15"},{"$f":"'Timeliness Quarterly'!$D$11","v":0.8},{"$f":"'Timeliness Quarterly'!$E$11","v":2},{"$f":"IF(IFERROR('Timeliness Quarterly'!F$13,\"error\")=\"error\",\"\",IF('Timeliness Quarterly'!F$13<'Timeliness Quarterly'!$D$11,'Timeliness Quarterly'!F$13,\"\"))","v":""},{"$f":"IF(IFERROR('Timeliness Quarterly'!$K$11,\"error\")=\"error\",\"\",IF('Timeliness Quarterly'!$K$11=0,\"\",'Timeliness Quarterly'!$K$11))","v":""},{"$f":"IF(IFERROR('Timeliness Quarterly'!$L$11,\"error\")=\"error\",\"\",IF('Timeliness Quarterly'!$L$11=0,\"\",'Timeliness Quarterly'!$L$11))","v":""}]
[null,{"$f":"'Timeliness Quarterly'!$G$9","v":"1/1/16 - 3/31/16"},{"$f":"'Timeliness Quarterly'!$D$11","v":0.8},{"$f":"'Timeliness Quarterly'!$E$11","v":2},{"$f":"IF(IFERROR('Timeliness Quarterly'!G$13,\"error\")=\"error\",\"\",IF('Timeliness Quarterly'!G$13<'Timeliness Quarterly'!$D$11,'Timeliness Quarterly'!G$13,\"\"))","v":""},{"$f":"IF(IFERROR('Timeliness Quarterly'!$M$11,\"error\")=\"error\",\"\",IF('Timeliness Quarterly'!$M$11=0,\"\",'Timeliness Quarterly'!$M$11))","v":""},{"$f":"IF(IFERROR('Timeliness Quarterly'!$N$11,\"error\")=\"error\",\"\",IF('Timeliness Quarterly'!$N$11=0,\"\",'Timeliness Quarterly'!$N$11))","v":""}]
[null,{"$f":"'Timeliness Quarterly'!$H$9","v":"4/1/16 - 6/30/16"},{"$f":"'Timeliness Quarterly'!$D$11","v":0.8},{"$f":"'Timeliness Quarterly'!$E$11","v":2},{"$f":"IF(IFERROR('Timeliness Quarterly'!H$13,\"error\")=\"error\",\"\",IF('Timeliness Quarterly'!H$13<'Timeliness Quarterly'!$D$11,'Timeliness Quarterly'!H$13,\"\"))","v":""},{"$f":"IF(IFERROR('Timeliness Quarterly'!$O$11,\"error\")=\"error\",\"\",IF('Timeliness Quarterly'!$O$11=0,\"\",'Timeliness Quarterly'!$O$11))","v":""},{"$f":"IF(IFERROR('Timeliness Quarterly'!$P$11,\"error\")=\"error\",\"\",IF('Timeliness Quarterly'!$P$11=0,\"\",'Timeliness Quarterly'!$P$11))","v":""}]
[null,{"$f":"'Timeliness Quarterly'!$I$9","v":"7/1/16 - 9/30/16"},{"$f":"'Timeliness Quarterly'!$D$11","v":0.8},{"$f":"'Timeliness Quarterly'!$E$11","v":2},{"$f":"IF(IFERROR('Timeliness Quarterly'!I$13,\"error\")=\"error\",\"\",IF('Timeliness Quarterly'!I$13<'Timeliness Quarterly'!$D$11,'Timeliness Quarterly'!I$13,\"\"))","v":""},{"$f":"IF(IFERROR('Timeliness Quarterly'!$Q$11,\"error\")=\"error\",\"\",IF('Timeliness Quarterly'!$Q$11=0,\"\",'Timeliness Quarterly'!$Q$11))","v":""},{"$f":"IF(IFERROR('Timeliness Quarterly'!$R$11,\"error\")=\"error\",\"\",IF('Timeliness Quarterly'!$R$11=0,\"\",'Timeliness Quarterly'!$R$11))","v":""}]
["County Criminal",{"$f":"'Timeliness Quarterly'!$F$9","v":"10/1/15 - 12/31/15"},{"$f":"'Timeliness Quarterly'!$D$14","v":0.8},{"$f":"'Timeliness Quarterly'!$E$14","v":3},{"$f":"IF(IFERROR('Timeliness Quarterly'!F$16,\"error\")=\"error\",\"\",IF('Timeliness Quarterly'!F$16<'Timeliness Quarterly'!$D$14,'Timeliness Quarterly'!F$16,\"\"))","v":""},{"$f":"IF(IFERROR('Timeliness Quarterly'!$K$14,\"error\")=\"error\",\"\",IF('Timeliness Quarterly'!$K$14=0,\"\",'Timeliness Quarterly'!$K$14))","v":""},{"$f":"IF(IFERROR('Timeliness Quarterly'!$L$14,\"error\")=\"error\",\"\",IF('Timeliness Quarterly'!$L$14=0,\"\",'Timeliness Quarterly'!$L$14))","v":""}]
[null,{"$f":"'Timeliness Quarterly'!$G$9","v":"1/1/16 - 3/31/16"},{"$f":"'Timeliness Quarterly'!$D$14","v":0.8},{"$f":"'Timeliness Quarterly'!$E$14","v":3},{"$f":"IF(IFERROR('Timeliness Quarterly'!G$16,\"error\")=\"error\",\"\",IF('Timeliness Quarterly'!G$16<'Timeliness Quarterly'!$D$14,'Timeliness Quarterly'!G$16,\"\"))","v":""},{"$f":"IF(IFERROR('Timeliness Quarterly'!$M$14,\"error\")=\"error\",\"\",IF('Timeliness Quarterly'!$M$14=0,\"\",'Timeliness Quarterly'!$M$14))","v":""},{"$f":"IF(IFERROR('Timeliness Quarterly'!$N$14,\"error\")=\"error\",\"\",IF('Timeliness Quarterly'!$N$14=0,\"\",'Timeliness Quarterly'!$N$14))","v":""}]
[null,{"$f":"'Timeliness Quarterly'!$H$9","v":"4/1/16 - 6/30/16"},{"$f":"'Timeliness Quarterly'!$D$14","v":0.8},{"$f":"'Timeliness Quarterly'!$E$14","v":3},{"$f":"IF(IFERROR('Timeliness Quarterly'!H$16,\"error\")=\"error\",\"\",IF('Timeliness Quarterly'!H$16<'Timeliness Quarterly'!$D$14,'Timeliness Quarterly'!H$16,\"\"))","v":""},{"$f":"IF(IFERROR('Timeliness Quarterly'!$O$14,\"error\")=\"error\",\"\",IF('Timeliness Quarterly'!$O$14=0,\"\",'Timeliness Quarterly'!$O$14))","v":""},{"$f":"IF(IFERROR('Timeliness Quarterly'!$P$14,\"error\")=\"error\",\"\",IF('Timeliness Quarterly'!$P$14=0,\"\",'Timeliness Quarterly'!$P$14))","v":""}]
[null,{"$f":"'Timeliness Quarterly'!$I$9","v":"7/1/16 - 9/30/16"},{"$f":"'Timeliness Quarterly'!$D$14","v":0.8},{"$f":"'Timeliness Quarterly'!$E$14","v":3},{"$f":"IF(IFERROR('Timeliness Quarterly'!I$16,\"error\")=\"error\",\"\",IF('Timeliness Quarterly'!I$16<'Timeliness Quarterly'!$D$14,'Timeliness Quarterly'!I$16,\"\"))","v":""},{"$f":"IF(IFERROR('Timeliness Quarterly'!$Q$14,\"error\")=\"error\",\"\",IF('Timeliness Quarterly'!$Q$14=0,\"\",'Timeliness Quarterly'!$Q$14))","v":""},{"$f":"IF(IFERROR('Timeliness Quarterly'!$R$14,\"error\")=\"error\",\"\",IF('Timeliness Quarterly'!$R$14=0,\"\",'Timeliness Quarterly'!$R$14))","v":""}]
["Juvenile Delinquency",{"$f":"'Timeliness Quarterly'!$F$9","v":"10/1/15 - 12/31/15"},{"$f":"'Timeliness Quarterly'!$D$17","v":0.8},{"$f":"'Timeliness Quarterly'!$E$17","v":2},{"$f":"IF(IFERROR('Timeliness Quarterly'!F$19,\"error\")=\"error\",\"\",IF('Timeliness Quarterly'!F$19<'Timeliness Quarterly'!$D$17,'Timeliness Quarterly'!F$19,\"\"))","v":""},{"$f":"IF(IFERROR('Timeliness Quarterly'!$K$17,\"error\")=\"error\",\"\",IF('Timeliness Quarterly'!$K$17=0,\"\",'Timeliness Quarterly'!$K$17))","v":""},{"$f":"IF(IFERROR('Timeliness Quarterly'!$L$17,\"error\")=\"error\",\"\",IF('Timeliness Quarterly'!$L$17=0,\"\",'Timeliness Quarterly'!$L$17))","v":""}]
[null,{"$f":"'Timeliness Quarterly'!$G$9","v":"1/1/16 - 3/31/16"},{"$f":"'Timeliness Quarterly'!$D$17","v":0.8},{"$f":"'Timeliness Quarterly'!$E$17","v":2},{"$f":"IF(IFERROR('Timeliness Quarterly'!G$19,\"error\")=\"error\",\"\",IF('Timeliness Quarterly'!G$19<'Timeliness Quarterly'!$D$17,'Timeliness Quarterly'!G$19,\"\"))","v":""},{"$f":"IF(IFERROR('Timeliness Quarterly'!$M$17,\"error\")=\"error\",\"\",IF('Timeliness Quarterly'!$M$17=0,\"\",'Timeliness Quarterly'!$M$17))","v":""},{"$f":"IF(IFERROR('Timeliness Quarterly'!$N$17,\"error\")=\"error\",\"\",IF('Timeliness Quarterly'!$N$17=0,\"\",'Timeliness Quarterly'!$N$17))","v":""}]
[null,{"$f":"'Timeliness Quarterly'!$H$9","v":"4/1/16 - 6/30/16"},{"$f":"'Timeliness Quarterly'!$D$17","v":0.8},{"$f":"'Timeliness Quarterly'!$E$17","v":2},{"$f":"IF(IFERROR('Timeliness Quarterly'!H$19,\"error\")=\"error\",\"\",IF('Timeliness Quarterly'!H$19<'Timeliness Quarterly'!$D$17,'Timeliness Quarterly'!H$19,\"\"))","v":""},{"$f":"IF(IFERROR('Timeliness Quarterly'!$O$17,\"error\")=\"error\",\"\",IF('Timeliness Quarterly'!$O$17=0,\"\",'Timeliness Quarterly'!$O$17))","v":""},{"$f":"IF(IFERROR('Timeliness Quarterly'!$P$17,\"error\")=\"error\",\"\",IF('Timeliness Quarterly'!$P$17=0,\"\",'Timeliness Quarterly'!$P$17))","v":""}]
[null,{"$f":"'Timeliness Quarterly'!$I$9","v":"7/1/16 - 9/30/16"},{"$f":"'Timeliness Quarterly'!$D$17","v":0.8},{"$f":"'Timeliness Quarterly'!$E$17","v":2},{"$f":"IF(IFERROR('Timeliness Quarterly'!I$19,\"error\")=\"error\",\"\",IF('Timeliness Quarterly'!I$19<'Timeliness Quarterly'!$D$17,'Timeliness Quarterly'!I$19,\"\"))","v":""},{"$f":"IF(IFERROR('Timeliness Quarterly'!$Q$17,\"error\")=\"error\",\"\",IF('Timeliness Quarterly'!$Q$17=0,\"\",'Timeliness Quarterly'!$Q$17))","v":""},{"$f":"IF(IFERROR('Timeliness Quarterly'!$R$17,\"error\")=\"error\",\"\",IF('Timeliness Quarterly'!$R$17=0,\"\",'Timeliness Quarterly'!$R$17))","v":""}]
["Criminal Traffic",{"$f":"'Timeliness Quarterly'!$F$9","v":"10/1/15 - 12/31/15"},{"$f":"'Timeliness Quarterly'!$D$20","v":0.8},{"$f":"'Timeliness Quarterly'!$E$20","v":3},{"$f":"IF(IFERROR('Timeliness Quarterly'!F$22,\"error\")=\"error\",\"\",IF('Timeliness Quarterly'!F$22<'Timeliness Quarterly'!$D$20,'Timeliness Quarterly'!F$22,\"\"))","v":""},{"$f":"IF(IFERROR('Timeliness Quarterly'!$K$20,\"error\")=\"error\",\"\",IF('Timeliness Quarterly'!$K$20=0,\"\",'Timeliness Quarterly'!$K$20))","v":""},{"$f":"IF(IFERROR('Timeliness Quarterly'!$L$20,\"error\")=\"error\",\"\",IF('Timeliness Quarterly'!$L$20=0,\"\",'Timeliness Quarterly'!$L$20))","v":""}]
[null,{"$f":"'Timeliness Quarterly'!$G$9","v":"1/1/16 - 3/31/16"},{"$f":"'Timeliness Quarterly'!$D$20","v":0.8},{"$f":"'Timeliness Quarterly'!$E$20","v":3},{"$f":"IF(IFERROR('Timeliness Quarterly'!G$22,\"error\")=\"error\",\"\",IF('Timeliness Quarterly'!G$22<'Timeliness Quarterly'!$D$20,'Timeliness Quarterly'!G$22,\"\"))","v":""},{"$f":"IF(IFERROR('Timeliness Quarterly'!$M$20,\"error\")=\"error\",\"\",IF('Timeliness Quarterly'!$M$20=0,\"\",'Timeliness Quarterly'!$M$20))","v":""},{"$f":"IF(IFERROR('Timeliness Quarterly'!$N$20,\"error\")=\"error\",\"\",IF('Timeliness Quarterly'!$N$20=0,\"\",'Timeliness Quarterly'!$N$20))","v":""}]
[null,{"$f":"'Timeliness Quarterly'!$H$9","v":"4/1/16 - 6/30/16"},{"$f":"'Timeliness Quarterly'!$D$20","v":0.8},{"$f":"'Timeliness Quarterly'!$E$20","v":3},{"$f":"IF(IFERROR('Timeliness Quarterly'!H$22,\"error\")=\"error\",\"\",IF('Timeliness Quarterly'!H$22<'Timeliness Quarterly'!$D$20,'Timeliness Quarterly'!H$22,\"\"))","v":""},{"$f":"IF(IFERROR('Timeliness Quarterly'!$O$20,\"error\")=\"error\",\"\",IF('Timeliness Quarterly'!$O$20=0,\"\",'Timeliness Quarterly'!$O$20))","v":""},{"$f":"IF(IFERROR('Timeliness Quarterly'!$P$20,\"error\")=\"error\",\"\",IF('Timeliness Quarterly'!$P$20=0,\"\",'Timeliness Quarterly'!$P$20))","v":""}]
[null,{"$f":"'Timeliness Quarterly'!$I$9","v":"7/1/16 - 9/30/16"},{"$f":"'Timeliness Quarterly'!$D$20","v":0.8},{"$f":"'Timeliness Quarterly'!$E$20","v":3},{"$f":"IF(IFERROR('Timeliness Quarterly'!I$22,\"error\")=\"error\",\"\",IF('Timeliness Quarterly'!I$22<'Timeliness Quarterly'!$D$20,'Timeliness Quarterly'!I$22,\"\"))","v":""},{"$f":"IF(IFERROR('Timeliness Quarterly'!$Q$20,\"error\")=\"error\",\"\",IF('Timeliness Quarterly'!$Q$20=0,\"\",'Timeliness Quarterly'!$Q$20))","v":""},{"$f":"IF(IFERROR('Timeliness Quarterly'!$R$20,\"error\")=\"error\",\"\",IF('Timeliness Quarterly'!$R$20=0,\"\",'Timeliness Quarterly'!$R$20))","v":""}]
["Circuit Civil",{"$f":"'Timeliness Quarterly'!$F$9","v":"10/1/15 - 12/31/15"},{"$f":"'Timeliness Quarterly'!$D$24","v":0.8},{"$f":"'Timeliness Quarterly'!$E$24","v":2},{"$f":"IF(IFERROR('Timeliness Quarterly'!F$26,\"error\")=\"error\",\"\",IF('Timeliness Quarterly'!F$26<'Timeliness Quarterly'!$D$24,'Timeliness Quarterly'!F$26,\"\"))","v":""},{"$f":"IF(IFERROR('Timeliness Quarterly'!$K$24,\"error\")=\"error\",\"\",IF('Timeliness Quarterly'!$K$24=0,\"\",'Timeliness Quarterly'!$K$24))","v":""},{"$f":"IF(IFERROR('Timeliness Quarterly'!$L$24,\"error\")=\"error\",\"\",IF('Timeliness Quarterly'!$L$24=0,\"\",'Timeliness Quarterly'!$L$24))","v":""}]
[null,{"$f":"'Timeliness Quarterly'!$G$9","v":"1/1/16 - 3/31/16"},{"$f":"'Timeliness Quarterly'!$D$24","v":0.8},{"$f":"'Timeliness Quarterly'!$E$24","v":2},{"$f":"IF(IFERROR('Timeliness Quarterly'!G$26,\"error\")=\"error\",\"\",IF('Timeliness Quarterly'!G$26<'Timeliness Quarterly'!$D$24,'Timeliness Quarterly'!G$26,\"\"))","v":""},{"$f":"IF(IFERROR('Timeliness Quarterly'!$M$24,\"error\")=\"error\",\"\",IF('Timeliness Quarterly'!$M$24=0,\"\",'Timeliness Quarterly'!$M$24))","v":""},{"$f":"IF(IFERROR('Timeliness Quarterly'!$N$24,\"error\")=\"error\",\"\",IF('Timeliness Quarterly'!$N$24=0,\"\",'Timeliness Quarterly'!$N$24))","v":""}]
[null,{"$f":"'Timeliness Quarterly'!$H$9","v":"4/1/16 - 6/30/16"},{"$f":"'Timeliness Quarterly'!$D$24","v":0.8},{"$f":"'Timeliness Quarterly'!$E$24","v":2},{"$f":"IF(IFERROR('Timeliness Quarterly'!H$26,\"error\")=\"error\",\"\",IF('Timeliness Quarterly'!H$26<'Timeliness Quarterly'!$D$24,'Timeliness Quarterly'!H$26,\"\"))","v":""},{"$f":"IF(IFERROR('Timeliness Quarterly'!$O$24,\"error\")=\"error\",\"\",IF('Timeliness Quarterly'!$O$24=0,\"\",'Timeliness Quarterly'!$O$24))","v":""},{"$f":"IF(IFERROR('Timeliness Quarterly'!$P$24,\"error\")=\"error\",\"\",IF('Timeliness Quarterly'!$P$24=0,\"\",'Timeliness Quarterly'!$P$24))","v":""}]
[null,{"$f":"'Timeliness Quarterly'!$I$9","v":"7/1/16 - 9/30/16"},{"$f":"'Timeliness Quarterly'!$D$24","v":0.8},{"$f":"'Timeliness Quarterly'!$E$24","v":2},{"$f":"IF(IFERROR('Timeliness Quarterly'!I$26,\"error\")=\"error\",\"\",IF('Timeliness Quarterly'!I$26<'Timeliness Quarterly'!$D$24,'Timeliness Quarterly'!I$26,\"\"))","v":""},{"$f":"IF(IFERROR('Timeliness Quarterly'!$Q$24,\"error\")=\"error\",\"\",IF('Timeliness Quarterly'!$Q$24=0,\"\",'Timeliness Quarterly'!$Q$24))","v":""},{"$f":"IF(IFERROR('Timeliness Quarterly'!$R$24,\"error\")=\"error\",\"\",IF('Timeliness Quarterly'!$R$24=0,\"\",'Timeliness Quarterly'!$R$24))","v":""}]
["County Civil",{"$f":"'Timeliness Quarterly'!$F$9","v":"10/1/15 - 12/31/15"},{"$f":"'Timeliness Quarterly'!$D$27","v":0.8},{"$f":"'Timeliness Quarterly'!$E$27","v":2},{"$f":"IF(IFERROR('Timeliness Quarterly'!F$29,\"error\")=\"error\",\"\",IF('Timeliness Quarterly'!F$29<'Timeliness Quarterly'!$D$27,'Timeliness Quarterly'!F$29,\"\"))","v":""},{"$f":"IF(IFERROR('Timeliness Quarterly'!$K$27,\"error\")=\"error\",\"\",IF('Timeliness Quarterly'!$K$27=0,\"\",'Timeliness Quarterly'!$K$27))","v":""},{"$f":"IF(IFERROR('Timeliness Quarterly'!$L$27,\"error\")=\"error\",\"\",IF('Timeliness Quarterly'!$L$27=0,\"\",'Timeliness Quarterly'!$L$27))","v":""}]
[null,{"$f":"'Timeliness Quarterly'!$G$9","v":"1/1/16 - 3/31/16"},{"$f":"'Timeliness Quarterly'!$D$27","v":0.8},{"$f":"'Timeliness Quarterly'!$E$27","v":2},{"$f":"IF(IFERROR('Timeliness Quarterly'!G$29,\"error\")=\"error\",\"\",IF('Timeliness Quarterly'!G$29<'Timeliness Quarterly'!$D$27,'Timeliness Quarterly'!G$29,\"\"))","v":""},{"$f":"IF(IFERROR('Timeliness Quarterly'!$M$27,\"error\")=\"error\",\"\",IF('Timeliness Quarterly'!$M$27=0,\"\",'Timeliness Quarterly'!$M$27))","v":""},{"$f":"IF(IFERROR('Timeliness Quarterly'!$N$27,\"error\")=\"error\",\"\",IF('Timeliness Quarterly'!$N$27=0,\"\",'Timeliness Quarterly'!$N$27))","v":""}]
[null,{"$f":"'Timeliness Quarterly'!$H$9","v":"4/1/16 - 6/30/16"},{"$f":"'Timeliness Quarterly'!$D$27","v":0.8},{"$f":"'Timeliness Quarterly'!$E$27","v":2},{"$f":"IF(IFERROR('Timeliness Quarterly'!H$29,\"error\")=\"error\",\"\",IF('Timeliness Quarterly'!H$29<'Timeliness Quarterly'!$D$27,'Timeliness Quarterly'!H$29,\"\"))","v":""},{"$f":"IF(IFERROR('Timeliness Quarterly'!$O$27,\"error\")=\"error\",\"\",IF('Timeliness Quarterly'!$O$27=0,\"\",'Timeliness Quarterly'!$O$27))","v":""},{"$f":"IF(IFERROR('Timeliness Quarterly'!$P$27,\"error\")=\"error\",\"\",IF('Timeliness Quarterly'!$P$27=0,\"\",'Timeliness Quarterly'!$P$27))","v":""}]
[null,{"$f":"'Timeliness Quarterly'!$I$9","v":"7/1/16 - 9/30/16"},{"$f":"'Timeliness Quarterly'!$D$27","v":0.8},{"$f":"'Timeliness Quarterly'!$E$27","v":2},{"$f":"IF(IFERROR('Timeliness Quarterly'!I$29,\"error\")=\"error\",\"\",IF('Timeliness Quarterly'!I$29<'Timeliness Quarterly'!$D$27,'Timeliness Quarterly'!I$29,\"\"))","v":""},{"$f":"IF(IFERROR('Timeliness Quarterly'!$Q$27,\"error\")=\"error\",\"\",IF('Timeliness Quarterly'!$Q$27=0,\"\",'Timeliness Quarterly'!$Q$27))","v":""},{"$f":"IF(IFERROR('Timeliness Quarterly'!$R$27,\"error\")=\"error\",\"\",IF('Timeliness Quarterly'!$R$27=0,\"\",'Timeliness Quarterly'!$R$27))","v":""}]
["Civil Traffic",{"$f":"'Timeliness Quarterly'!$F$9","v":"10/1/15 - 12/31/15"},{"$f":"'Timeliness Quarterly'!$D$30","v":0.8},{"$f":"'Timeliness Quarterly'!$E$30","v":4},{"$f":"IF(IFERROR('Timeliness Quarterly'!F$32,\"error\")=\"error\",\"\",IF('Timeliness Quarterly'!F$32<'Timeliness Quarterly'!$D$30,'Timeliness Quarterly'!F$32,\"\"))","v":""},{"$f":"IF(IFERROR('Timeliness Quarterly'!$K$30,\"error\")=\"error\",\"\",IF('Timeliness Quarterly'!$K$30=0,\"\",'Timeliness Quarterly'!$K$30))","v":""},{"$f":"IF(IFERROR('Timeliness Quarterly'!$L$30,\"error\")=\"error\",\"\",IF('Timeliness Quarterly'!$L$30=0,\"\",'Timeliness Quarterly'!$L$30))","v":""}]
[null,{"$f":"'Timeliness Quarterly'!$G$9","v":"1/1/16 - 3/31/16"},{"$f":"'Timeliness Quarterly'!$D$30","v":0.8},{"$f":"'Timeliness Quarterly'!$E$30","v":4},{"$f":"IF(IFERROR('Timeliness Quarterly'!G$32,\"error\")=\"error\",\"\",IF('Timeliness Quarterly'!G$32<'Timeliness Quarterly'!$D$30,'Timeliness Quarterly'!G$32,\"\"))","v":""},{"$f":"IF(IFERROR('Timeliness Quarterly'!$M$30,\"error\")=\"error\",\"\",IF('Timeliness Quarterly'!$M$30=0,\"\",'Timeliness Quarterly'!$M$30))","v":""},{"$f":"IF(IFERROR('Timeliness Quarterly'!$N$30,\"error\")=\"error\",\"\",IF('Timeliness Quarterly'!$N$30=0,\"\",'Timeliness Quarterly'!$N$30))","v":""}]
[null,{"$f":"'Timeliness Quarterly'!$H$9","v":"4/1/16 - 6/30/16"},{"$f":"'Timeliness Quarterly'!$D$30","v":0.8},{"$f":"'Timeliness Quarterly'!$E$30","v":4},{"$f":"IF(IFERROR('Timeliness Quarterly'!H$32,\"error\")=\"error\",\"\",IF('Timeliness Quarterly'!H$32<'Timeliness Quarterly'!$D$30,'Timeliness Quarterly'!H$32,\"\"))","v":""},{"$f":"IF(IFERROR('Timeliness Quarterly'!$O$30,\"error\")=\"error\",\"\",IF('Timeliness Quarterly'!$O$30=0,\"\",'Timeliness Quarterly'!$O$30))","v":""},{"$f":"IF(IFERROR('Timeliness Quarterly'!$P$30,\"error\")=\"error\",\"\",IF('Timeliness Quarterly'!$P$30=0,\"\",'Timeliness Quarterly'!$P$30))","v":""}]
[null,{"$f":"'Timeliness Quarterly'!$I$9","v":"7/1/16 - 9/30/16"},{"$f":"'Timeliness Quarterly'!$D$30","v":0.8},{"$f":"'Timeliness Quarterly'!$E$30","v":4},{"$f":"IF(IFERROR('Timeliness Quarterly'!I$32,\"error\")=\"error\",\"\",IF('Timeliness Quarterly'!I$32<'Timeliness Quarterly'!$D$30,'Timeliness Quarterly'!I$32,\"\"))","v":""},{"$f":"IF(IFERROR('Timeliness Quarterly'!$Q$30,\"error\")=\"error\",\"\",IF('Timeliness Quarterly'!$Q$30=0,\"\",'Timeliness Quarterly'!$Q$30))","v":""},{"$f":"IF(IFERROR('Timeliness Quarterly'!$R$30,\"error\")=\"error\",\"\",IF('Timeliness Quarterly'!$R$30=0,\"\",'Timeliness Quarterly'!$R$30))","v":""}]
["Probate",{"$f":"'Timeliness Quarterly'!$F$9","v":"10/1/15 - 12/31/15"},{"$f":"'Timeliness Quarterly'!$D$33","v":0.8},{"$f":"'Timeliness Quarterly'!$E$33","v":2},{"$f":"IF(IFERROR('Timeliness Quarterly'!F$35,\"error\")=\"error\",\"\",IF('Timeliness Quarterly'!F$35<'Timeliness Quarterly'!$D$33,'Timeliness Quarterly'!F$35,\"\"))","v":""},{"$f":"IF(IFERROR('Timeliness Quarterly'!$K$33,\"error\")=\"error\",\"\",IF('Timeliness Quarterly'!$K$33=0,\"\",'Timeliness Quarterly'!$K$33))","v":""},{"$f":"IF(IFERROR('Timeliness Quarterly'!$L$33,\"error\")=\"error\",\"\",IF('Timeliness Quarterly'!$L$33=0,\"\",'Timeliness Quarterly'!$L$33))","v":""}]
[null,{"$f":"'Timeliness Quarterly'!$G$9","v":"1/1/16 - 3/31/16"},{"$f":"'Timeliness Quarterly'!$D$33","v":0.8},{"$f":"'Timeliness Quarterly'!$E$33","v":2},{"$f":"IF(IFERROR('Timeliness Quarterly'!G$35,\"error\")=\"error\",\"\",IF('Timeliness Quarterly'!G$35<'Timeliness Quarterly'!$D$33,'Timeliness Quarterly'!G$35,\"\"))","v":""},{"$f":"IF(IFERROR('Timeliness Quarterly'!$M$33,\"error\")=\"error\",\"\",IF('Timeliness Quarterly'!$M$33=0,\"\",'Timeliness Quarterly'!$M$33))","v":""},{"$f":"IF(IFERROR('Timeliness Quarterly'!$N$33,\"error\")=\"error\",\"\",IF('Timeliness Quarterly'!$N$33=0,\"\",'Timeliness Quarterly'!$N$33))","v":""}]
[null,{"$f":"'Timeliness Quarterly'!$H$9","v":"4/1/16 - 6/30/16"},{"$f":"'Timeliness Quarterly'!$D$33","v":0.8},{"$f":"'Timeliness Quarterly'!$E$33","v":2},{"$f":"IF(IFERROR('Timeliness Quarterly'!H$35,\"error\")=\"error\",\"\",IF('Timeliness Quarterly'!H$35<'Timeliness Quarterly'!$D$33,'Timeliness Quarterly'!H$35,\"\"))","v":""},{"$f":"IF(IFERROR('Timeliness Quarterly'!$O$33,\"error\")=\"error\",\"\",IF('Timeliness Quarterly'!$O$33=0,\"\",'Timeliness Quarterly'!$O$33))","v":""},{"$f":"IF(IFERROR('Timeliness Quarterly'!$P$33,\"error\")=\"error\",\"\",IF('Timeliness Quarterly'!$P$33=0,\"\",'Timeliness Quarterly'!$P$33))","v":""}]
[null,{"$f":"'Timeliness Quarterly'!$I$9","v":"7/1/16 - 9/30/16"},{"$f":"'Timeliness Quarterly'!$D$33","v":0.8},{"$f":"'Timeliness Quarterly'!$E$33","v":2},{"$f":"IF(IFERROR('Timeliness Quarterly'!I$35,\"error\")=\"error\",\"\",IF('Timeliness Quarterly'!I$35<'Timeliness Quarterly'!$D$33,'Timeliness Quarterly'!I$35,\"\"))","v":""},{"$f":"IF(IFERROR('Timeliness Quarterly'!$Q$33,\"error\")=\"error\",\"\",IF('Timeliness Quarterly'!$Q$33=0,\"\",'Timeliness Quarterly'!$Q$33))","v":""},{"$f":"IF(IFERROR('Timeliness Quarterly'!$R$33,\"error\")=\"error\",\"\",IF('Timeliness Quarterly'!$R$33=0,\"\",'Timeliness Quarterly'!$R$33))","v":""}]
["Family",{"$f":"'Timeliness Quarterly'!$F$9","v":"10/1/15 - 12/31/15"},{"$f":"'Timeliness Quarterly'!$D$36","v":0.8},{"$f":"'Timeliness Quarterly'!$E$36","v":3},{"$f":"IF(IFERROR('Timeliness Quarterly'!F$38,\"error\")=\"error\",\"\",IF('Timeliness Quarterly'!F$38<'Timeliness Quarterly'!$D$36,'Timeliness Quarterly'!F$38,\"\"))","v":""},{"$f":"IF(IFERROR('Timeliness Quarterly'!$K$36,\"error\")=\"error\",\"\",IF('Timeliness Quarterly'!$K$36=0,\"\",'Timeliness Quarterly'!$K$36))","v":""},{"$f":"IF(IFERROR('Timeliness Quarterly'!$L$36,\"error\")=\"error\",\"\",IF('Timeliness Quarterly'!$L$36=0,\"\",'Timeliness Quarterly'!$L$36))","v":""}]
[null,{"$f":"'Timeliness Quarterly'!$G$9","v":"1/1/16 - 3/31/16"},{"$f":"'Timeliness Quarterly'!$D$36","v":0.8},{"$f":"'Timeliness Quarterly'!$E$36","v":3},{"$f":"IF(IFERROR('Timeliness Quarterly'!G$38,\"error\")=\"error\",\"\",IF('Timeliness Quarterly'!G$38<'Timeliness Quarterly'!$D$36,'Timeliness Quarterly'!G$38,\"\"))","v":""},{"$f":"IF(IFERROR('Timeliness Quarterly'!$M$36,\"error\")=\"error\",\"\",IF('Timeliness Quarterly'!$M$36=0,\"\",'Timeliness Quarterly'!$M$36))","v":""},{"$f":"IF(IFERROR('Timeliness Quarterly'!$N$36,\"error\")=\"error\",\"\",IF('Timeliness Quarterly'!$N$36=0,\"\",'Timeliness Quarterly'!$N$36))","v":""}]
[null,{"$f":"'Timeliness Quarterly'!$H$9","v":"4/1/16 - 6/30/16"},{"$f":"'Timeliness Quarterly'!$D$36","v":0.8},{"$f":"'Timeliness Quarterly'!$E$36","v":3},{"$f":"IF(IFERROR('Timeliness Quarterly'!H$38,\"error\")=\"error\",\"\",IF('Timeliness Quarterly'!H$38<'Timeliness Quarterly'!$D$36,'Timeliness Quarterly'!H$38,\"\"))","v":""},{"$f":"IF(IFERROR('Timeliness Quarterly'!$O$36,\"error\")=\"error\",\"\",IF('Timeliness Quarterly'!$O$36=0,\"\",'Timeliness Quarterly'!$O$36))","v":""},{"$f":"IF(IFERROR('Timeliness Quarterly'!$P$36,\"error\")=\"error\",\"\",IF('Timeliness Quarterly'!$P$36=0,\"\",'Timeliness Quarterly'!$P$36))","v":""}]
[null,{"$f":"'Timeliness Quarterly'!$I$9","v":"7/1/16 - 9/30/16"},{"$f":"'Timeliness Quarterly'!$D$36","v":0.8},{"$f":"'Timeliness Quarterly'!$E$36","v":3},{"$f":"IF(IFERROR('Timeliness Quarterly'!I$38,\"error\")=\"error\",\"\",IF('Timeliness Quarterly'!I$38<'Timeliness Quarterly'!$D$36,'Timeliness Quarterly'!I$38,\"\"))","v":""},{"$f":"IF(IFERROR('Timeliness Quarterly'!$Q$36,\"error\")=\"error\",\"\",IF('Timeliness Quarterly'!$Q$36=0,\"\",'Timeliness Quarterly'!$Q$36))","v":""},{"$f":"IF(IFERROR('Timeliness Quarterly'!$R$36,\"error\")=\"error\",\"\",IF('Timeliness Quarterly'!$R$36=0,\"\",'Timeliness Quarterly'!$R$36))","v":""}]
["Juvenile Dependency",{"$f":"'Timeliness Quarterly'!$F$9","v":"10/1/15 - 12/31/15"},{"$f":"'Timeliness Quarterly'!$D$39","v":0.8},{"$f":"'Timeliness Quarterly'!$E$39","v":2},{"$f":"IF(IFERROR('Timeliness Quarterly'!F$41,\"error\")=\"error\",\"\",IF('Timeliness Quarterly'!F$41<'Timeliness Quarterly'!$D$39,'Timeliness Quarterly'!F$41,\"\"))","v":""},{"$f":"IF(IFERROR('Timeliness Quarterly'!$K$39,\"error\")=\"error\",\"\",IF('Timeliness Quarterly'!$K$39=0,\"\",'Timeliness Quarterly'!$K$39))","v":""},{"$f":"IF(IFERROR('Timeliness Quarterly'!$L$39,\"error\")=\"error\",\"\",IF('Timeliness Quarterly'!$L$39=0,\"\",'Timeliness Quarterly'!$L$39))","v":""}]
[null,{"$f":"'Timeliness Quarterly'!$G$9","v":"1/1/16 - 3/31/16"},{"$f":"'Timeliness Quarterly'!$D$39","v":0.8},{"$f":"'Timeliness Quarterly'!$E$39","v":2},{"$f":"IF(IFERROR('Timeliness Quarterly'!G$41,\"error\")=\"error\",\"\",IF('Timeliness Quarterly'!G$41<'Timeliness Quarterly'!$D$39,'Timeliness Quarterly'!G$41,\"\"))","v":""},{"$f":"IF(IFERROR('Timeliness Quarterly'!$M$39,\"error\")=\"error\",\"\",IF('Timeliness Quarterly'!$M$39=0,\"\",'Timeliness Quarterly'!$M$39))","v":""},{"$f":"IF(IFERROR('Timeliness Quarterly'!$N$39,\"error\")=\"error\",\"\",IF('Timeliness Quarterly'!$N$39=0,\"\",'Timeliness Quarterly'!$N$39))","v":""}]
[null,{"$f":"'Timeliness Quarterly'!$H$9","v":"4/1/16 - 6/30/16"},{"$f":"'Timeliness Quarterly'!$D$39","v":0.8},{"$f":"'Timeliness Quarterly'!$E$39","v":2},{"$f":"IF(IFERROR('Timeliness Quarterly'!H$41,\"error\")=\"error\",\"\",IF('Timeliness Quarterly'!H$41<'Timeliness Quarterly'!$D$39,'Timeliness Quarterly'!H$41,\"\"))","v":""},{"$f":"IF(IFERROR('Timeliness Quarterly'!$O$39,\"error\")=\"error\",\"\",IF('Timeliness Quarterly'!$O$39=0,\"\",'Timeliness Quarterly'!$O$39))","v":""},{"$f":"IF(IFERROR('Timeliness Quarterly'!$P$39,\"error\")=\"error\",\"\",IF('Timeliness Quarterly'!$P$39=0,\"\",'Timeliness Quarterly'!$P$39))","v":""}]
[null,{"$f":"'Timeliness Quarterly'!$I$9","v":"7/1/16 - 9/30/16"},{"$f":"'Timeliness Quarterly'!$D$39","v":0.8},{"$f":"'Timeliness Quarterly'!$E$39","v":2},{"$f":"IF(IFERROR('Timeliness Quarterly'!I$41,\"error\")=\"error\",\"\",IF('Timeliness Quarterly'!I$41<'Timeliness Quarterly'!$D$39,'Timeliness Quarterly'!I$41,\"\"))","v":""},{"$f":"IF(IFERROR('Timeliness Quarterly'!$Q$39,\"error\")=\"error\",\"\",IF('Timeliness Quarterly'!$Q$39=0,\"\",'Timeliness Quarterly'!$Q$39))","v":""},{"$f":"IF(IFERROR('Timeliness Quarterly'!$R$39,\"error\")=\"error\",\"\",IF('Timeliness Quarterly'!$R$39=0,\"\",'Timeliness Quarterly'!$R$39))","v":""}]
[]
[]
[" \nTimeliness Measeure # 2","Quarter","CCOC Standard",{"$f":"'Timeliness Quarterly'!E45","v":"# of business days"},"Clerk Performance","Reason Code","Current Actions to Improve"]
["Circuit Criminal",{"$f":"'Timeliness Quarterly'!$F$45","v":"10/1/15 - 12/31/15"},{"$f":"'Timeliness Quarterly'!$D$47","v":0.8},{"$f":"'Timeliness Quarterly'!$E$47","v":3},{"$f":"IF(IFERROR('Timeliness Quarterly'!F$49,\"error\")=\"error\",\"\",IF('Timeliness Quarterly'!F$49<'Timeliness Quarterly'!$D$47,'Timeliness Quarterly'!F$49,\"\"))","v":""},{"$f":"IF(IFERROR('Timeliness Quarterly'!$K$47,\"error\")=\"error\",\"\",IF('Timeliness Quarterly'!$K$47=0,\"\",'Timeliness Quarterly'!$K$47))","v":""},{"$f":"IF(IFERROR('Timeliness Quarterly'!$L$47,\"error\")=\"error\",\"\",IF('Timeliness Quarterly'!$L$47=0,\"\",'Timeliness Quarterly'!$L$47))","v":""}]
[null,{"$f":"'Timeliness Quarterly'!$G$45","v":"1/1/16 - 3/31/16"},{"$f":"'Timeliness Quarterly'!$D$47","v":0.8},{"$f":"'Timeliness Quarterly'!$E$47","v":3},{"$f":"IF(IFERROR('Timeliness Quarterly'!G$49,\"error\")=\"error\",\"\",IF('Timeliness Quarterly'!G$49<'Timeliness Quarterly'!$D$47,'Timeliness Quarterly'!G$49,\"\"))","v":""},{"$f":"IF(IFERROR('Timeliness Quarterly'!$M$47,\"error\")=\"error\",\"\",IF('Timeliness Quarterly'!$M$47=0,\"\",'Timeliness Quarterly'!$M$47))","v":""},{"$f":"IF(IFERROR('Timeliness Quarterly'!$N$47,\"error\")=\"error\",\"\",IF('Timeliness Quarterly'!$N$47=0,\"\",'Timeliness Quarterly'!$N$47))","v":""}]
[null,{"$f":"'Timeliness Quarterly'!$H$45","v":"4/1/16 - 6/30/16"},{"$f":"'Timeliness Quarterly'!$D$47","v":0.8},{"$f":"'Timeliness Quarterly'!$E$47","v":3},{"$f":"IF(IFERROR('Timeliness Quarterly'!H$49,\"error\")=\"error\",\"\",IF('Timeliness Quarterly'!H$49<'Timeliness Quarterly'!$D$47,'Timeliness Quarterly'!H$49,\"\"))","v":""},{"$f":"IF(IFERROR('Timeliness Quarterly'!$O$47,\"error\")=\"error\",\"\",IF('Timeliness Quarterly'!$O$47=0,\"\",'Timeliness Quarterly'!$O$47))","v":""},{"$f":"IF(IFERROR('Timeliness Quarterly'!$P$47,\"error\")=\"error\",\"\",IF('Timeliness Quarterly'!$P$47=0,\"\",'Timeliness Quarterly'!$P$47))","v":""}]
[null,{"$f":"'Timeliness Quarterly'!$I$45","v":"7/1/16 - 9/30/16"},{"$f":"'Timeliness Quarterly'!$D$47","v":0.8},{"$f":"'Timeliness Quarterly'!$E$47","v":3},{"$f":"IF(IFERROR('Timeliness Quarterly'!I$49,\"error\")=\"error\",\"\",IF('Timeliness Quarterly'!I$49<'Timeliness Quarterly'!$D$47,'Timeliness Quarterly'!I$49,\"\"))","v":""},{"$f":"IF(IFERROR('Timeliness Quarterly'!$Q$47,\"error\")=\"error\",\"\",IF('Timeliness Quarterly'!$Q$47=0,\"\",'Timeliness Quarterly'!$Q$47))","v":""},{"$f":"IF(IFERROR('Timeliness Quarterly'!$R$47,\"error\")=\"error\",\"\",IF('Timeliness Quarterly'!$R$47=0,\"\",'Timeliness Quarterly'!$R$47))","v":""}]
["County Criminal",{"$f":"'Timeliness Quarterly'!$F$45","v":"10/1/15 - 12/31/15"},{"$f":"'Timeliness Quarterly'!$D$50","v":0.8},{"$f":"'Timeliness Quarterly'!$E$50","v":3},{"$f":"IF(IFERROR('Timeliness Quarterly'!F$52,\"error\")=\"error\",\"\",IF('Timeliness Quarterly'!F$52<'Timeliness Quarterly'!$D$50,'Timeliness Quarterly'!F$52,\"\"))","v":""},{"$f":"IF(IFERROR('Timeliness Quarterly'!$K$50,\"error\")=\"error\",\"\",IF('Timeliness Quarterly'!$K$50=0,\"\",'Timeliness Quarterly'!$K$50))","v":""},{"$f":"IF(IFERROR('Timeliness Quarterly'!$L$50,\"error\")=\"error\",\"\",IF('Timeliness Quarterly'!$L$50=0,\"\",'Timeliness Quarterly'!$L$50))","v":""}]
[null,{"$f":"'Timeliness Quarterly'!$G$45","v":"1/1/16 - 3/31/16"},{"$f":"'Timeliness Quarterly'!$D$50","v":0.8},{"$f":"'Timeliness Quarterly'!$E$50","v":3},{"$f":"IF(IFERROR('Timeliness Quarterly'!G$52,\"error\")=\"error\",\"\",IF('Timeliness Quarterly'!G$52<'Timeliness Quarterly'!$D$50,'Timeliness Quarterly'!G$52,\"\"))","v":""},{"$f":"IF(IFERROR('Timeliness Quarterly'!$M$50,\"error\")=\"error\",\"\",IF('Timeliness Quarterly'!$M$50=0,\"\",'Timeliness Quarterly'!$M$50))","v":""},{"$f":"IF(IFERROR('Timeliness Quarterly'!$N$50,\"error\")=\"error\",\"\",IF('Timeliness Quarterly'!$N$50=0,\"\",'Timeliness Quarterly'!$N$50))","v":""}]
[null,{"$f":"'Timeliness Quarterly'!$H$45","v":"4/1/16 - 6/30/16"},{"$f":"'Timeliness Quarterly'!$D$50","v":0.8},{"$f":"'Timeliness Quarterly'!$E$50","v":3},{"$f":"IF(IFERROR('Timeliness Quarterly'!H$52,\"error\")=\"error\",\"\",IF('Timeliness Quarterly'!H$52<'Timeliness Quarterly'!$D$50,'Timeliness Quarterly'!H$52,\"\"))","v":""},{"$f":"IF(IFERROR('Timeliness Quarterly'!$O$50,\"error\")=\"error\",\"\",IF('Timeliness Quarterly'!$O$50=0,\"\",'Timeliness Quarterly'!$O$50))","v":""},{"$f":"IF(IFERROR('Timeliness Quarterly'!$P$50,\"error\")=\"error\",\"\",IF('Timeliness Quarterly'!$P$50=0,\"\",'Timeliness Quarterly'!$P$50))","v":""}]
[null,{"$f":"'Timeliness Quarterly'!$I$45","v":"7/1/16 - 9/30/16"},{"$f":"'Timeliness Quarterly'!$D$50","v":0.8},{"$f":"'Timeliness Quarterly'!$E$50","v":3},{"$f":"IF(IFERROR('Timeliness Quarterly'!I$52,\"error\")=\"error\",\"\",IF('Timeliness Quarterly'!I$52<'Timeliness Quarterly'!$D$50,'Timeliness Quarterly'!I$52,\"\"))","v":""},{"$f":"IF(IFERROR('Timeliness Quarterly'!$Q$50,\"error\")=\"error\",\"\",IF('Timeliness Quarterly'!$Q$50=0,\"\",'Timeliness Quarterly'!$Q$50))","v":""},{"$f":"IF(IFERROR('Timeliness Quarterly'!$R$50,\"error\")=\"error\",\"\",IF('Timeliness Quarterly'!$R$50=0,\"\",'Timeliness Quarterly'!$R$50))","v":""}]
["Juvenile Delinquency",{"$f":"'Timeliness Quarterly'!$F$45","v":"10/1/15 - 12/31/15"},{"$f":"'Timeliness Quarterly'!$D$53","v":0.8},{"$f":"'Timeliness Quarterly'!$E$53","v":3},{"$f":"IF(IFERROR('Timeliness Quarterly'!F$55,\"error\")=\"error\",\"\",IF('Timeliness Quarterly'!F$55<'Timeliness Quarterly'!$D$53,'Timeliness Quarterly'!F$55,\"\"))","v":""},{"$f":"IF(IFERROR('Timeliness Quarterly'!$K$53,\"error\")=\"error\",\"\",IF('Timeliness Quarterly'!$K$53=0,\"\",'Timeliness Quarterly'!$K$53))","v":""},{"$f":"IF(IFERROR('Timeliness Quarterly'!$L$53,\"error\")=\"error\",\"\",IF('Timeliness Quarterly'!$L$53=0,\"\",'Timeliness Quarterly'!$L$53))","v":""}]
[null,{"$f":"'Timeliness Quarterly'!$G$45","v":"1/1/16 - 3/31/16"},{"$f":"'Timeliness Quarterly'!$D$53","v":0.8},{"$f":"'Timeliness Quarterly'!$E$53","v":3},{"$f":"IF(IFERROR('Timeliness Quarterly'!G$55,\"error\")=\"error\",\"\",IF('Timeliness Quarterly'!G$55<'Timeliness Quarterly'!$D$53,'Timeliness Quarterly'!G$55,\"\"))","v":""},{"$f":"IF(IFERROR('Timeliness Quarterly'!$M$53,\"error\")=\"error\",\"\",IF('Timeliness Quarterly'!$M$53=0,\"\",'Timeliness Quarterly'!$M$53))","v":""},{"$f":"IF(IFERROR('Timeliness Quarterly'!$N$53,\"error\")=\"error\",\"\",IF('Timeliness Quarterly'!$N$53=0,\"\",'Timeliness Quarterly'!$N$53))","v":""}]
[null,{"$f":"'Timeliness Quarterly'!$H$45","v":"4/1/16 - 6/30/16"},{"$f":"'Timeliness Quarterly'!$D$53","v":0.8},{"$f":"'Timeliness Quarterly'!$E$53","v":3},{"$f":"IF(IFERROR('Timeliness Quarterly'!H$55,\"error\")=\"error\",\"\",IF('Timeliness Quarterly'!H$55<'Timeliness Quarterly'!$D$53,'Timeliness Quarterly'!H$55,\"\"))","v":""},{"$f":"IF(IFERROR('Timeliness Quarterly'!$O$53,\"error\")=\"error\",\"\",IF('Timeliness Quarterly'!$O$53=0,\"\",'Timeliness Quarterly'!$O$53))","v":""},{"$f":"IF(IFERROR('Timeliness Quarterly'!$P$53,\"error\")=\"error\",\"\",IF('Timeliness Quarterly'!$P$53=0,\"\",'Timeliness Quarterly'!$P$53))","v":""}]
[null,{"$f":"'Timeliness Quarterly'!$I$45","v":"7/1/16 - 9/30/16"},{"$f":"'Timeliness Quarterly'!$D$53","v":0.8},{"$f":"'Timeliness Quarterly'!$E$53","v":3},{"$f":"IF(IFERROR('Timeliness Quarterly'!I$55,\"error\")=\"error\",\"\",IF('Timeliness Quarterly'!I$55<'Timeliness Quarterly'!$D$53,'Timeliness Quarterly'!I$55,\"\"))","v":""},{"$f":"IF(IFERROR('Timeliness Quarterly'!$Q$53,\"error\")=\"error\",\"\",IF('Timeliness Quarterly'!$Q$53=0,\"\",'Timeliness Quarterly'!$Q$53))","v":""},{"$f":"IF(IFERROR('Timeliness Quarterly'!$R$53,\"error\")=\"error\",\"\",IF('Timeliness Quarterly'!$R$53=0,\"\",'Timeliness Quarterly'!$R$53))","v":""}]
["Criminal Traffic",{"$f":"'Timeliness Quarterly'!$F$45","v":"10/1/15 - 12/31/15"},{"$f":"'Timeliness Quarterly'!$D$56","v":0.8},{"$f":"'Timeliness Quarterly'!$E$56","v":3},{"$f":"IF(IFERROR('Timeliness Quarterly'!F$58,\"error\")=\"error\",\"\",IF('Timeliness Quarterly'!F$58<'Timeliness Quarterly'!$D$56,'Timeliness Quarterly'!F$58,\"\"))","v":""},{"$f":"IF(IFERROR('Timeliness Quarterly'!$K$56,\"error\")=\"error\",\"\",IF('Timeliness Quarterly'!$K$56=0,\"\",'Timeliness Quarterly'!$K$56))","v":""},{"$f":"IF(IFERROR('Timeliness Quarterly'!$L$56,\"error\")=\"error\",\"\",IF('Timeliness Quarterly'!$L$56=0,\"\",'Timeliness Quarterly'!$L$56))","v":""}]
[null,{"$f":"'Timeliness Quarterly'!$G$45","v":"1/1/16 - 3/31/16"},{"$f":"'Timeliness Quarterly'!$D$56","v":0.8},{"$f":"'Timeliness Quarterly'!$E$56","v":3},{"$f":"IF(IFERROR('Timeliness Quarterly'!G$58,\"error\")=\"error\",\"\",IF('Timeliness Quarterly'!G$58<'Timeliness Quarterly'!$D$56,'Timeliness Quarterly'!G$58,\"\"))","v":""},{"$f":"IF(IFERROR('Timeliness Quarterly'!$M$56,\"error\")=\"error\",\"\",IF('Timeliness Quarterly'!$M$56=0,\"\",'Timeliness Quarterly'!$M$56))","v":""},{"$f":"IF(IFERROR('Timeliness Quarterly'!$N$56,\"error\")=\"error\",\"\",IF('Timeliness Quarterly'!$N$56=0,\"\",'Timeliness Quarterly'!$N$56))","v":""}]
[null,{"$f":"'Timeliness Quarterly'!$H$45","v":"4/1/16 - 6/30/16"},{"$f":"'Timeliness Quarterly'!$D$56","v":0.8},{"$f":"'Timeliness Quarterly'!$E$56","v":3},{"$f":"IF(IFERROR('Timeliness Quarterly'!H$58,\"error\")=\"error\",\"\",IF('Timeliness Quarterly'!H$58<'Timeliness Quarterly'!$D$56,'Timeliness Quarterly'!H$58,\"\"))","v":""},{"$f":"IF(IFERROR('Timeliness Quarterly'!$O$56,\"error\")=\"error\",\"\",IF('Timeliness Quarterly'!$O$56=0,\"\",'Timeliness Quarterly'!$O$56))","v":""},{"$f":"IF(IFERROR('Timeliness Quarterly'!$P$56,\"error\")=\"error\",\"\",IF('Timeliness Quarterly'!$P$56=0,\"\",'Timeliness Quarterly'!$P$56))","v":""}]
[null,{"$f":"'Timeliness Quarterly'!$I$45","v":"7/1/16 - 9/30/16"},{"$f":"'Timeliness Quarterly'!$D$56","v":0.8},{"$f":"'Timeliness Quarterly'!$E$56","v":3},{"$f":"IF(IFERROR('Timeliness Quarterly'!I$58,\"error\")=\"error\",\"\",IF('Timeliness Quarterly'!I$58<'Timeliness Quarterly'!$D$56,'Timeliness Quarterly'!I$58,\"\"))","v":""},{"$f":"IF(IFERROR('Timeliness Quarterly'!$Q$56,\"error\")=\"error\",\"\",IF('Timeliness Quarterly'!$Q$56=0,\"\",'Timeliness Quarterly'!$Q$56))","v":""},{"$f":"IF(IFERROR('Timeliness Quarterly'!$R$56,\"error\")=\"error\",\"\",IF('Timeliness Quarterly'!$R$56=0,\"\",'Timeliness Quarterly'!$R$56))","v":""}]
["Circuit Civil",{"$f":"'Timeliness Quarterly'!$F$45","v":"10/1/15 - 12/31/15"},{"$f":"'Timeliness Quarterly'!$D$60","v":0.8},{"$f":"'Timeliness Quarterly'!$E$60","v":3},{"$f":"IF(IFERROR('Timeliness Quarterly'!F$62,\"error\")=\"error\",\"\",IF('Timeliness Quarterly'!F$62<'Timeliness Quarterly'!$D$60,'Timeliness Quarterly'!F$62,\"\"))","v":""},{"$f":"IF(IFERROR('Timeliness Quarterly'!$K$60,\"error\")=\"error\",\"\",IF('Timeliness Quarterly'!$K$60=0,\"\",'Timeliness Quarterly'!$K$60))","v":""},{"$f":"IF(IFERROR('Timeliness Quarterly'!$L$60,\"error\")=\"error\",\"\",IF('Timeliness Quarterly'!$L$60=0,\"\",'Timeliness Quarterly'!$L$60))","v":""}]
[null,{"$f":"'Timeliness Quarterly'!$G$45","v":"1/1/16 - 3/31/16"},{"$f":"'Timeliness Quarterly'!$D$60","v":0.8},{"$f":"'Timeliness Quarterly'!$E$60","v":3},{"$f":"IF(IFERROR('Timeliness Quarterly'!G$62,\"error\")=\"error\",\"\",IF('Timeliness Quarterly'!G$62<'Timeliness Quarterly'!$D$60,'Timeliness Quarterly'!G$62,\"\"))","v":""},{"$f":"IF(IFERROR('Timeliness Quarterly'!$M$60,\"error\")=\"error\",\"\",IF('Timeliness Quarterly'!$M$60=0,\"\",'Timeliness Quarterly'!$M$60))","v":""},{"$f":"IF(IFERROR('Timeliness Quarterly'!$N$60,\"error\")=\"error\",\"\",IF('Timeliness Quarterly'!$N$60=0,\"\",'Timeliness Quarterly'!$N$60))","v":""}]
[null,{"$f":"'Timeliness Quarterly'!$H$45","v":"4/1/16 - 6/30/16"},{"$f":"'Timeliness Quarterly'!$D$60","v":0.8},{"$f":"'Timeliness Quarterly'!$E$60","v":3},{"$f":"IF(IFERROR('Timeliness Quarterly'!H$62,\"error\")=\"error\",\"\",IF('Timeliness Quarterly'!H$62<'Timeliness Quarterly'!$D$60,'Timeliness Quarterly'!H$62,\"\"))","v":""},{"$f":"IF(IFERROR('Timeliness Quarterly'!$O$60,\"error\")=\"error\",\"\",IF('Timeliness Quarterly'!$O$60=0,\"\",'Timeliness Quarterly'!$O$60))","v":""},{"$f":"IF(IFERROR('Timeliness Quarterly'!$P$60,\"error\")=\"error\",\"\",IF('Timeliness Quarterly'!$P$60=0,\"\",'Timeliness Quarterly'!$P$60))","v":""}]
[null,{"$f":"'Timeliness Quarterly'!$I$45","v":"7/1/16 - 9/30/16"},{"$f":"'Timeliness Quarterly'!$D$60","v":0.8},{"$f":"'Timeliness Quarterly'!$E$60","v":3},{"$f":"IF(IFERROR('Timeliness Quarterly'!I$62,\"error\")=\"error\",\"\",IF('Timeliness Quarterly'!I$62<'Timeliness Quarterly'!$D$60,'Timeliness Quarterly'!I$62,\"\"))","v":""},{"$f":"IF(IFERROR('Timeliness Quarterly'!$Q$60,\"error\")=\"error\",\"\",IF('Timeliness Quarterly'!$Q$60=0,\"\",'Timeliness Quarterly'!$Q$60))","v":""},{"$f":"IF(IFERROR('Timeliness Quarterly'!$R$60,\"error\")=\"error\",\"\",IF('Timeliness Quarterly'!$R$60=0,\"\",'Timeliness Quarterly'!$R$60))","v":""}]
["County Civil",{"$f":"'Timeliness Quarterly'!$F$45","v":"10/1/15 - 12/31/15"},{"$f":"'Timeliness Quarterly'!$D$63","v":0.8},{"$f":"'Timeliness Quarterly'!$E$63","v":3},{"$f":"IF(IFERROR('Timeliness Quarterly'!F$65,\"error\")=\"error\",\"\",IF('Timeliness Quarterly'!F$65<'Timeliness Quarterly'!$D$63,'Timeliness Quarterly'!F$65,\"\"))","v":""},{"$f":"IF(IFERROR('Timeliness Quarterly'!$K$63,\"error\")=\"error\",\"\",IF('Timeliness Quarterly'!$K$63=0,\"\",'Timeliness Quarterly'!$K$63))","v":""},{"$f":"IF(IFERROR('Timeliness Quarterly'!$L$63,\"error\")=\"error\",\"\",IF('Timeliness Quarterly'!$L$63=0,\"\",'Timeliness Quarterly'!$L$63))","v":""}]
[null,{"$f":"'Timeliness Quarterly'!$G$45","v":"1/1/16 - 3/31/16"},{"$f":"'Timeliness Quarterly'!$D$63","v":0.8},{"$f":"'Timeliness Quarterly'!$E$63","v":3},{"$f":"IF(IFERROR('Timeliness Quarterly'!G$65,\"error\")=\"error\",\"\",IF('Timeliness Quarterly'!G$65<'Timeliness Quarterly'!$D$63,'Timeliness Quarterly'!G$65,\"\"))","v":""},{"$f":"IF(IFERROR('Timeliness Quarterly'!$M$63,\"error\")=\"error\",\"\",IF('Timeliness Quarterly'!$M$63=0,\"\",'Timeliness Quarterly'!$M$63))","v":""},{"$f":"IF(IFERROR('Timeliness Quarterly'!$N$63,\"error\")=\"error\",\"\",IF('Timeliness Quarterly'!$N$63=0,\"\",'Timeliness Quarterly'!$N$63))","v":""}]
[null,{"$f":"'Timeliness Quarterly'!$H$45","v":"4/1/16 - 6/30/16"},{"$f":"'Timeliness Quarterly'!$D$63","v":0.8},{"$f":"'Timeliness Quarterly'!$E$63","v":3},{"$f":"IF(IFERROR('Timeliness Quarterly'!H$65,\"error\")=\"error\",\"\",IF('Timeliness Quarterly'!H$65<'Timeliness Quarterly'!$D$63,'Timeliness Quarterly'!H$65,\"\"))","v":""},{"$f":"IF(IFERROR('Timeliness Quarterly'!$O$63,\"error\")=\"error\",\"\",IF('Timeliness Quarterly'!$O$63=0,\"\",'Timeliness Quarterly'!$O$63))","v":""},{"$f":"IF(IFERROR('Timeliness Quarterly'!$P$63,\"error\")=\"error\",\"\",IF('Timeliness Quarterly'!$P$63=0,\"\",'Timeliness Quarterly'!$P$63))","v":""}]
[null,{"$f":"'Timeliness Quarterly'!$I$45","v":"7/1/16 - 9/30/16"},{"$f":"'Timeliness Quarterly'!$D$63","v":0.8},{"$f":"'Timeliness Quarterly'!$E$63","v":3},{"$f":"IF(IFERROR('Timeliness Quarterly'!I$65,\"error\")=\"error\",\"\",IF('Timeliness Quarterly'!I$65<'Timeliness Quarterly'!$D$63,'Timeliness Quarterly'!I$65,\"\"))","v":""},{"$f":"IF(IFERROR('Timeliness Quarterly'!$Q$63,\"error\")=\"error\",\"\",IF('Timeliness Quarterly'!$Q$63=0,\"\",'Timeliness Quarterly'!$Q$63))","v":""},{"$f":"IF(IFERROR('Timeliness Quarterly'!$R$63,\"error\")=\"error\",\"\",IF('Timeliness Quarterly'!$R$63=0,\"\",'Timeliness Quarterly'!$R$63))","v":""}]
["Civil Traffic",{"$f":"'Timeliness Quarterly'!$F$45","v":"10/1/15 - 12/31/15"},{"$f":"'Timeliness Quarterly'!$D$66","v":0.8},{"$f":"'Timeliness Quarterly'!$E$66","v":4},{"$f":"IF(IFERROR('Timeliness Quarterly'!F$68,\"error\")=\"error\",\"\",IF('Timeliness Quarterly'!F$68<'Timeliness Quarterly'!$D$66,'Timeliness Quarterly'!F$68,\"\"))","v":""},{"$f":"IF(IFERROR('Timeliness Quarterly'!$K$66,\"error\")=\"error\",\"\",IF('Timeliness Quarterly'!$K$66=0,\"\",'Timeliness Quarterly'!$K$66))","v":""},{"$f":"IF(IFERROR('Timeliness Quarterly'!$L$66,\"error\")=\"error\",\"\",IF('Timeliness Quarterly'!$L$66=0,\"\",'Timeliness Quarterly'!$L$66))","v":""}]
[null,{"$f":"'Timeliness Quarterly'!$G$45","v":"1/1/16 - 3/31/16"},{"$f":"'Timeliness Quarterly'!$D$66","v":0.8},{"$f":"'Timeliness Quarterly'!$E$66","v":4},{"$f":"IF(IFERROR('Timeliness Quarterly'!G$68,\"error\")=\"error\",\"\",IF('Timeliness Quarterly'!G$68<'Timeliness Quarterly'!$D$66,'Timeliness Quarterly'!G$68,\"\"))","v":""},{"$f":"IF(IFERROR('Timeliness Quarterly'!$M$66,\"error\")=\"error\",\"\",IF('Timeliness Quarterly'!$M$66=0,\"\",'Timeliness Quarterly'!$M$66))","v":""},{"$f":"IF(IFERROR('Timeliness Quarterly'!$N$66,\"error\")=\"error\",\"\",IF('Timeliness Quarterly'!$N$66=0,\"\",'Timeliness Quarterly'!$N$66))","v":""}]
[null,{"$f":"'Timeliness Quarterly'!$H$45","v":"4/1/16 - 6/30/16"},{"$f":"'Timeliness Quarterly'!$D$66","v":0.8},{"$f":"'Timeliness Quarterly'!$E$66","v":4},{"$f":"IF(IFERROR('Timeliness Quarterly'!H$68,\"error\")=\"error\",\"\",IF('Timeliness Quarterly'!H$68<'Timeliness Quarterly'!$D$66,'Timeliness Quarterly'!H$68,\"\"))","v":""},{"$f":"IF(IFERROR('Timeliness Quarterly'!$O$66,\"error\")=\"error\",\"\",IF('Timeliness Quarterly'!$O$66=0,\"\",'Timeliness Quarterly'!$O$66))","v":""},{"$f":"IF(IFERROR('Timeliness Quarterly'!$P$66,\"error\")=\"error\",\"\",IF('Timeliness Quarterly'!$P$66=0,\"\",'Timeliness Quarterly'!$P$66))","v":""}]
[null,{"$f":"'Timeliness Quarterly'!$I$45","v":"7/1/16 - 9/30/16"},{"$f":"'Timeliness Quarterly'!$D$66","v":0.8},{"$f":"'Timeliness Quarterly'!$E$66","v":4},{"$f":"IF(IFERROR('Timeliness Quarterly'!I$68,\"error\")=\"error\",\"\",IF('Timeliness Quarterly'!I$68<'Timeliness Quarterly'!$D$66,'Timeliness Quarterly'!I$68,\"\"))","v":""},{"$f":"IF(IFERROR('Timeliness Quarterly'!$Q$66,\"error\")=\"error\",\"\",IF('Timeliness Quarterly'!$Q$66=0,\"\",'Timeliness Quarterly'!$Q$66))","v":""},{"$f":"IF(IFERROR('Timeliness Quarterly'!$R$66,\"error\")=\"error\",\"\",IF('Timeliness Quarterly'!$R$66=0,\"\",'Timeliness Quarterly'!$R$66))","v":""}]
["Probate",{"$f":"'Timeliness Quarterly'!$F$45","v":"10/1/15 - 12/31/15"},{"$f":"'Timeliness Quarterly'!$D$69","v":0.8},{"$f":"'Timeliness Quarterly'!$E$69","v":3},{"$f":"IF(IFERROR('Timeliness Quarterly'!F$71,\"error\")=\"error\",\"\",IF('Timeliness Quarterly'!F$71<'Timeliness Quarterly'!$D$69,'Timeliness Quarterly'!F$71,\"\"))","v":""},{"$f":"IF(IFERROR('Timeliness Quarterly'!$K$69,\"error\")=\"error\",\"\",IF('Timeliness Quarterly'!$K$69=0,\"\",'Timeliness Quarterly'!$K$69))","v":""},{"$f":"IF(IFERROR('Timeliness Quarterly'!$L$69,\"error\")=\"error\",\"\",IF('Timeliness Quarterly'!$L$69=0,\"\",'Timeliness Quarterly'!$L$69))","v":""}]
[null,{"$f":"'Timeliness Quarterly'!$G$45","v":"1/1/16 - 3/31/16"},{"$f":"'Timeliness Quarterly'!$D$69","v":0.8},{"$f":"'Timeliness Quarterly'!$E$69","v":3},{"$f":"IF(IFERROR('Timeliness Quarterly'!G$71,\"error\")=\"error\",\"\",IF('Timeliness Quarterly'!G$71<'Timeliness Quarterly'!$D$69,'Timeliness Quarterly'!G$71,\"\"))","v":""},{"$f":"IF(IFERROR('Timeliness Quarterly'!$M$69,\"error\")=\"error\",\"\",IF('Timeliness Quarterly'!$M$69=0,\"\",'Timeliness Quarterly'!$M$69))","v":""},{"$f":"IF(IFERROR('Timeliness Quarterly'!$N$69,\"error\")=\"error\",\"\",IF('Timeliness Quarterly'!$N$69=0,\"\",'Timeliness Quarterly'!$N$69))","v":""}]
[null,{"$f":"'Timeliness Quarterly'!$H$45","v":"4/1/16 - 6/30/16"},{"$f":"'Timeliness Quarterly'!$D$69","v":0.8},{"$f":"'Timeliness Quarterly'!$E$69","v":3},{"$f":"IF(IFERROR('Timeliness Quarterly'!H$71,\"error\")=\"error\",\"\",IF('Timeliness Quarterly'!H$71<'Timeliness Quarterly'!$D$69,'Timeliness Quarterly'!H$71,\"\"))","v":""},{"$f":"IF(IFERROR('Timeliness Quarterly'!$O$69,\"error\")=\"error\",\"\",IF('Timeliness Quarterly'!$O$69=0,\"\",'Timeliness Quarterly'!$O$69))","v":""},{"$f":"IF(IFERROR('Timeliness Quarterly'!$P$69,\"error\")=\"error\",\"\",IF('Timeliness Quarterly'!$P$69=0,\"\",'Timeliness Quarterly'!$P$69))","v":""}]
[null,{"$f":"'Timeliness Quarterly'!$I$45","v":"7/1/16 - 9/30/16"},{"$f":"'Timeliness Quarterly'!$D$69","v":0.8},{"$f":"'Timeliness Quarterly'!$E$69","v":3},{"$f":"IF(IFERROR('Timeliness Quarterly'!I$71,\"error\")=\"error\",\"\",IF('Timeliness Quarterly'!I$71<'Timeliness Quarterly'!$D$69,'Timeliness Quarterly'!I$71,\"\"))","v":""},{"$f":"IF(IFERROR('Timeliness Quarterly'!$Q$69,\"error\")=\"error\",\"\",IF('Timeliness Quarterly'!$Q$69=0,\"\",'Timeliness Quarterly'!$Q$69))","v":""},{"$f":"IF(IFERROR('Timeliness Quarterly'!$R$69,\"error\")=\"error\",\"\",IF('Timeliness Quarterly'!$R$69=0,\"\",'Timeliness Quarterly'!$R$69))","v":""}]
["Family",{"$f":"'Timeliness Quarterly'!$F$45","v":"10/1/15 - 12/31/15"},{"$f":"'Timeliness Quarterly'!$D$72","v":0.8},{"$f":"'Timeliness Quarterly'!$E$72","v":3},{"$f":"IF(IFERROR('Timeliness Quarterly'!F$74,\"error\")=\"error\",\"\",IF('Timeliness Quarterly'!F$74<'Timeliness Quarterly'!$D$72,'Timeliness Quarterly'!F$74,\"\"))","v":""},{"$f":"IF(IFERROR('Timeliness Quarterly'!$K$72,\"error\")=\"error\",\"\",IF('Timeliness Quarterly'!$K$72=0,\"\",'Timeliness Quarterly'!$K$72))","v":""},{"$f":"IF(IFERROR('Timeliness Quarterly'!$L$72,\"error\")=\"error\",\"\",IF('Timeliness Quarterly'!$L$72=0,\"\",'Timeliness Quarterly'!$L$72))","v":""}]
[null,{"$f":"'Timeliness Quarterly'!$G$45","v":"1/1/16 - 3/31/16"},{"$f":"'Timeliness Quarterly'!$D$72","v":0.8},{"$f":"'Timeliness Quarterly'!$E$72","v":3},{"$f":"IF(IFERROR('Timeliness Quarterly'!G$74,\"error\")=\"error\",\"\",IF('Timeliness Quarterly'!G$74<'Timeliness Quarterly'!$D$72,'Timeliness Quarterly'!G$74,\"\"))","v":""},{"$f":"IF(IFERROR('Timeliness Quarterly'!$M$72,\"error\")=\"error\",\"\",IF('Timeliness Quarterly'!$M$72=0,\"\",'Timeliness Quarterly'!$M$72))","v":""},{"$f":"IF(IFERROR('Timeliness Quarterly'!$N$72,\"error\")=\"error\",\"\",IF('Timeliness Quarterly'!$N$72=0,\"\",'Timeliness Quarterly'!$N$72))","v":""}]
[null,{"$f":"'Timeliness Quarterly'!$H$45","v":"4/1/16 - 6/30/16"},{"$f":"'Timeliness Quarterly'!$D$72","v":0.8},{"$f":"'Timeliness Quarterly'!$E$72","v":3},{"$f":"IF(IFERROR('Timeliness Quarterly'!H$74,\"error\")=\"error\",\"\",IF('Timeliness Quarterly'!H$74<'Timeliness Quarterly'!$D$72,'Timeliness Quarterly'!H$74,\"\"))","v":""},{"$f":"IF(IFERROR('Timeliness Quarterly'!$O$72,\"error\")=\"error\",\"\",IF('Timeliness Quarterly'!$O$72=0,\"\",'Timeliness Quarterly'!$O$72))","v":""},{"$f":"IF(IFERROR('Timeliness Quarterly'!$P$72,\"error\")=\"error\",\"\",IF('Timeliness Quarterly'!$P$72=0,\"\",'Timeliness Quarterly'!$P$72))","v":""}]
[null,{"$f":"'Timeliness Quarterly'!$I$45","v":"7/1/16 - 9/30/16"},{"$f":"'Timeliness Quarterly'!$D$72","v":0.8},{"$f":"'Timeliness Quarterly'!$E$72","v":3},{"$f":"IF(IFERROR('Timeliness Quarterly'!I$74,\"error\")=\"error\",\"\",IF('Timeliness Quarterly'!I$74<'Timeliness Quarterly'!$D$72,'Timeliness Quarterly'!I$74,\"\"))","v":""},{"$f":"IF(IFERROR('Timeliness Quarterly'!$Q$72,\"error\")=\"error\",\"\",IF('Timeliness Quarterly'!$Q$72=0,\"\",'Timeliness Quarterly'!$Q$72))","v":""},{"$f":"IF(IFERROR('Timeliness Quarterly'!$R$72,\"error\")=\"error\",\"\",IF('Timeliness Quarterly'!$R$72=0,\"\",'Timeliness Quarterly'!$R$72))","v":""}]
["Juvenile Dependency",{"$f":"'Timeliness Quarterly'!$F$45","v":"10/1/15 - 12/31/15"},{"$f":"'Timeliness Quarterly'!$D$75","v":0.8},{"$f":"'Timeliness Quarterly'!$E$75","v":3},{"$f":"IF(IFERROR('Timeliness Quarterly'!F$77,\"error\")=\"error\",\"\",IF('Timeliness Quarterly'!F$77<'Timeliness Quarterly'!$D$75,'Timeliness Quarterly'!F$77,\"\"))","v":""},{"$f":"IF(IFERROR('Timeliness Quarterly'!$K$75,\"error\")=\"error\",\"\",IF('Timeliness Quarterly'!$K$75=0,\"\",'Timeliness Quarterly'!$K$75))","v":""},{"$f":"IF(IFERROR('Timeliness Quarterly'!$L$75,\"error\")=\"error\",\"\",IF('Timeliness Quarterly'!$L$75=0,\"\",'Timeliness Quarterly'!$L$75))","v":""}]
[null,{"$f":"'Timeliness Quarterly'!$G$45","v":"1/1/16 - 3/31/16"},{"$f":"'Timeliness Quarterly'!$D$75","v":0.8},{"$f":"'Timeliness Quarterly'!$E$75","v":3},{"$f":"IF(IFERROR('Timeliness Quarterly'!G$77,\"error\")=\"error\",\"\",IF('Timeliness Quarterly'!G$77<'Timeliness Quarterly'!$D$75,'Timeliness Quarterly'!G$77,\"\"))","v":""},{"$f":"IF(IFERROR('Timeliness Quarterly'!$M$75,\"error\")=\"error\",\"\",IF('Timeliness Quarterly'!$M$75=0,\"\",'Timeliness Quarterly'!$M$75))","v":""},{"$f":"IF(IFERROR('Timeliness Quarterly'!$N$75,\"error\")=\"error\",\"\",IF('Timeliness Quarterly'!$N$75=0,\"\",'Timeliness Quarterly'!$N$75))","v":""}]
[null,{"$f":"'Timeliness Quarterly'!$H$45","v":"4/1/16 - 6/30/16"},{"$f":"'Timeliness Quarterly'!$D$75","v":0.8},{"$f":"'Timeliness Quarterly'!$E$75","v":3},{"$f":"IF(IFERROR('Timeliness Quarterly'!H$77,\"error\")=\"error\",\"\",IF('Timeliness Quarterly'!H$77<'Timeliness Quarterly'!$D$75,'Timeliness Quarterly'!H$77,\"\"))","v":""},{"$f":"IF(IFERROR('Timeliness Quarterly'!$O$75,\"error\")=\"error\",\"\",IF('Timeliness Quarterly'!$O$75=0,\"\",'Timeliness Quarterly'!$O$75))","v":""},{"$f":"IF(IFERROR('Timeliness Quarterly'!$P$75,\"error\")=\"error\",\"\",IF('Timeliness Quarterly'!$P$75=0,\"\",'Timeliness Quarterly'!$P$75))","v":""}]
[null,{"$f":"'Timeliness Quarterly'!$I$45","v":"7/1/16 - 9/30/16"},{"$f":"'Timeliness Quarterly'!$D$75","v":0.8},{"$f":"'Timeliness Quarterly'!$E$75","v":3},{"$f":"IF(IFERROR('Timeliness Quarterly'!I$77,\"error\")=\"error\",\"\",IF('Timeliness Quarterly'!I$77<'Timeliness Quarterly'!$D$75,'Timeliness Quarterly'!I$77,\"\"))","v":""},{"$f":"IF(IFERROR('Timeliness Quarterly'!$Q$75,\"error\")=\"error\",\"\",IF('Timeliness Quarterly'!$Q$75=0,\"\",'Timeliness Quarterly'!$Q$75))","v":""},{"$f":"IF(IFERROR('Timeliness Quarterly'!$R$75,\"error\")=\"error\",\"\",IF('Timeliness Quarterly'!$R$75=0,\"\",'Timeliness Quarterly'!$R$75))","v":""}]

{"sheet":"DownloadBudgetData (2) Operatio","index":4,"n_rows":68,"n_cols":33,"rows_kept":68,"cut":false,"hidden":true,"merged":[]}
["FiscalYear","County","Outputs_NewCases_CrimCir","Outputs_NewCases_CrimCounty","Outputs_NewCases_CrimJuvDel","Outputs_NewCases_CrimTraf","Outputs_NewCases_CivCir","Outputs_NewCases_CivCounty","Outputs_NewCases_CivProbate","Outputs_NewCases_CivFamily","Outputs_NewCases_CivJuvDep","Outputs_NewCases_CivTraf","Outputs_Reopens_CrimCir","Outputs_Reopens_CrimCounty","Outputs_Reopens_CrimJuvDel","Outputs_Reopens_CrimTraf","Outputs_Reopens_CivCir","Outputs_Reopens_CivCounty","Outputs_Reopens_CivProbate","Outputs_Reopens_CivFamily","Outputs_Reopens_CivJuvDep","Outputs_Reopens_CivTraf","Outputs_NoticesOfAppeal_CrimCir","Outputs_NoticesOfAppeal_CrimCounty","Outputs_NoticesOfAppeal_CrimJuvDel","Outputs_NoticesOfAppeal_CrimTraf","Outputs_NoticesOfAppeal_CivCir","Outputs_NoticesOfAppeal_CivCounty","Outputs_NoticesOfAppeal_CivProbate","Outputs_NoticesOfAppeal_CivFamily","Outputs_NoticesOfAppeal_CivJuvDep","Outputs_NoticesOfAppeal_CivTraf","Outputs_FinReceipts"]
["2015-2016","Alachua",4550,5900,1220,4050,1750,4800,2700,2800,160,50000,1800,600,800,700,1300,2200,1450,4800,250,0,200,10,10,15,30,6,5,0,0,0,150000]
["2015-2016","Baker",571,741,121,479,153,266,193,418,64,4038,186,234,39,172,6,0,6,214,0,0,16,1,2,0,4,0,1,1,1,0,33140]
["2015-2016","Bay",5300,4200,1035,2100,1460,3081,1479,2787,315,32165,2562,1200,700,500,1000,840,40,2400,1600,0,185,10,5,2,30,6,4,10,12,1,75794]
["2015-2016","Bradford",700,625,130,675,250,380,125,375,16,8800,125,130,15,85,60,60,10,300,0,0,5,1,0,0,12,1,0,0,0,0,15000]
["2015-2016","Brevard",9200,10000,1800,7500,5600,7000,5000,7200,350,55000,8000,2100,2600,2100,6700,3600,2000,8700,500,0,500,25,3,30,100,20,10,35,25,15,453037]
["2015-2016","Broward",16650,23890,4190,28460,22920,70610,11030,24740,1070,314510,14640,2190,1940,1380,48680,23930,450,26810,5210,0,910,80,60,10,770,270,30,180,40,10,844380]
["2015-2016","Calhoun",210,150,30,125,75,120,55,225,10,1600,180,25,8,24,10,10,2,100,35,0,5,0,0,0,0,0,0,0,0,0,4700]
["2015-2016","Charlotte",2400,2500,650,2500,1800,1900,2400,2150,125,15500,1015,450,300,500,1075,400,475,580,30,0,60,8,1,1,50,3,3,0,3,3,53000]
["2015-2016","Citrus",1200,1800,300,900,1150,1600,1585,1800,220,5500,2500,900,260,600,1080,700,750,1800,1550,0,143,2,2,1,24,4,3,4,12,2,130000]
["2015-2016","Clay",1750,2400,670,2100,1320,2500,985,2460,265,22500,930,225,230,170,1050,570,60,2210,1200,0,40,6,6,3,46,7,1,15,2,1,54363]
["2015-2016","Collier",2400,3900,750,4900,2400,3900,3700,3100,175,34000,1800,1240,235,1200,3000,1400,1150,3100,700,0,100,2,1,2,85,10,1,1,1,1,204000]
["2015-2016","Columbia",1100,1400,300,1100,550,1110,420,1200,175,12000,1000,350,160,450,130,230,110,1050,100,0,60,1,0,1,35,2,1,1,1,1,23000]
["2015-2016","Dade",30362,45038,4889,76503,30460,78035,13663,30782,4513,722200,26629,14793,5150,48378,56040,24587,46801,25431,11770,0,1007,23,70,28,1035,357,35,140,75,0,1274168]
["2015-2016","Desoto",600,750,300,500,225,350,130,400,25,4000,250,125,100,50,45,1,1,80,5,0,20,2,1,1,10,1,1,1,1,1,10750]
["2015-2016","Dixie",260,231,43,185,106,146,91,358,34,2600,53,40,2,4,3,2,3,10,1,0,4,0,0,0,4,0,0,2,2,0,4334]
["2015-2016","Duval",11570,21514,3410,19009,8295,20839,6148,13672,1117,109515,8185,2723,1878,1957,3782,2284,567,6589,427,0,337,2,2,5,206,133,14,66,82,7,278875]
["2015-2016","Escambia",6048,7063,1569,3612,2198,4185,3425,5032,300,34098,6963,1391,5782,503,1905,1440,2250,6584,4538,0,670,30,4,5,50,15,4,16,15,5,117250]
["2015-2016","Flagler",1100,1600,250,1200,800,1100,700,1200,50,9000,440,300,60,140,900,350,160,900,200,0,40,1,1,1,15,1,1,3,1,1,24000]
["2015-2016","Franklin",275,550,40,175,125,90,80,200,8,1200,200,175,35,100,75,1,0,1,0,0,2,2,0,1,4,1,0,1,0,0,4565]
["2015-2016","Gadsden",587,625,123,1061,423,474,10743,554,639,12,506,406,45,0,189,14,0,100,191,0,0,0,0,0,0,0,0,0,0,0,20214]
["2015-2016","Gilchrist",210,280,55,150,125,145,90,300,15,1000,85,50,15,85,12,2,6,190,1,0,2,0,0,0,1,0,1,2,1,0,3600]
["2015-2016","Glades",140,343,23,199,54,79,58,102,4,4509,48,22,0,32,31,4,2,64,5,0,6,0,0,0,2,1,0,0,1,0,6618]
["2015-2016","Gulf",337,288,38,190,133,125,114,185,8,852,161,39,16,71,56,0,0,140,0,0,9,0,0,0,11,0,0,0,0,0,4000]
["2015-2016","Hamilton",170,215,80,230,350,75,60,195,12,2500,100,20,10,5,24,10,10,8,24,0,15,1,2,1,5,1,2,1,1,1,7500]
["2015-2016","Hardee",430,645,149,735,145,230,140,425,20,4550,220,80,45,40,75,60,95,415,125,0,0,0,0,0,0,0,0,0,0,0,11000]
["2015-2016","Hendry",760,1200,245,1300,280,380,110,550,36,7000,120,150,30,15,60,15,35,190,50,0,15,1,1,1,5,1,20,75,50,1,15000]
["2015-2016","Hernando",2100,2150,700,1500,1600,2800,2600,2400,175,26000,3800,700,250,300,1600,825,800,1200,666,0,100,2,0,0,20,5,0,5,2,2,70350]
["2015-2016","Highlands",1062,1263,418,972,691,1300,1130,1077,100,9206,902,1629,1255,1250,394,204,211,1505,270,0,113,1,1,2,18,3,1,1,2,2,25500]
["2015-2016","Hillsborough",18740,24714,4735,32815,10238,36073,10233,17358,992,187899,15613,1568,2631,1276,19198,13844,5407,14447,631,0,998,19,34,43,214,26,5,126,39,19,357734]
["2015-2016","Holmes",475,500,70,250,130,200,100,330,17,3450,250,70,25,43,18,10,5,100,20,0,12,0,0,0,4,1,0,1,0,0,7500]
["2015-2016","Indian River",1502,2924,328,1378,1073,1968,1487,1994,102,17317,1590,218,1190,100,916,526,493,1755,1475,0,48,3,11,2,39,10,2,9,1,0,53603]
["2015-2016","Jackson",597,506,130,419,756,640,288,215,137,0,245,42,13,44,89,3,183,445,35,0,19,0,0,0,15,8,0,1,4261,0,13490]
["2015-2016","Jefferson",190,208,27,294,149,137,73,159,11,6188,99,7,11,4,13,90,2,200,9,0,0,0,0,0,4,0,0,0,0,0,7727]
["2015-2016","Lafayette",60,102,8,60,52,85,41,125,5,550,65,14,7,10,4,15,1,35,1,0,4,1,1,1,1,1,1,2,1,1,1300]
["2015-2016","Lake",3200,3200,900,4050,2400,4100,2550,3650,230,39000,1200,760,320,515,2750,1650,625,3900,1100,0,160,3,0,2,60,2,0,10,10,10,341500]
["2015-2016","Lee",5700,15000,2250,9200,5000,11000,6600,8600,450,88000,19000,3700,615,3200,7000,4700,3500,7800,2000,0,225,15,5,10,170,25,2,35,10,0,230000]
["2015-2016","Leon",4046,3701,848,3007,3166,6007,2499,4011,126,36000,856,312,4276,303,2046,2283,1617,4797,2306,0,319,8,24,5,436,6,1,11,12,3,119000]
["2015-2016","Levy",675,800,100,600,275,440,245,670,15,3700,600,215,215,55,205,250,65,580,75,0,30,5,3,2,10,2,3,11,1,0,9822]
["2015-2016","Liberty",105,158,35,87,35,57,39,151,1,700,126,39,12,40,8,1,10,64,0,0,4,0,0,0,4,0,0,0,0,0,2500]
["2015-2016","Madison",350,420,130,470,120,210,110,300,8,9900,330,62,24,60,8,3,1,290,1,0,8,1,1,1,1,1,1,1,1,1,15900]
["2015-2016","Manatee",4500,5500,1000,5100,2000,5000,3200,4000,700,33000,4400,750,1200,1100,2400,2000,1400,5500,1500,0,250,15,15,10,75,10,0,15,10,0,110000]
["2015-2016","Marion",4843,5293,1156,4311,3168,4612,4915,4820,297,28929,5670,1403,1105,1445,2540,1693,791,5953,1430,0,321,13,1,6,67,12,2,24,19,4,400522]
["2015-2016","Martin",1640,3214,417,3008,1498,1717,1460,1523,147,24269,1578,288,748,194,874,497,450,1319,70,0,102,6,14,0,50,14,0,18,1,0,63364]
["2015-2016","Monroe",1400,3400,175,900,860,1150,550,1450,85,26500,700,230,200,80,700,100,70,280,250,0,85,5,1,1,45,3,3,1,1,3,49000]
["2015-2016","Nassau",865,1550,170,1500,500,750,475,1175,49,9000,450,700,60,950,475,320,80,900,320,0,60,1,1,1,7,1,0,3,0,0,22500]
["2015-2016","Okaloosa",3000,4800,900,3400,1650,3000,1650,3400,350,24800,4300,2000,650,980,1800,1500,375,2000,285,0,95,5,1,1,50,10,1,20,5,1,66750]
["2015-2016","Okeechobee",730,634,117,734,615,456,194,562,74,4910,322,153,36,79,257,177,62,507,439,0,74,2,0,0,14,0,0,2,2,0,14604]
["2015-2016","Orange",18400,23700,6050,19165,11590,31000,6680,19660,630,262000,10560,3100,7100,2200,24500,10000,4600,15300,1700,0,665,25,40,70,350,170,15,80,5,30,884000]
["2015-2016","Osceola",5043,5919,1480,4917,4579,5233,1374,5406,113,85196,10037,7586,1405,7877,3091,667,394,3169,1518,0,156,9,5,6,72,12,4,9,17,1,0]
["2015-2016","Palm Beach",13500,30500,3200,26900,15000,25800,11100,12800,900,218000,6800,3700,7700,7000,24000,8000,7400,19700,5500,0,535,30,35,27,530,90,40,130,30,24,575000]
["2015-2016","Pasco",8676,13296,1656,4200,4821,7275,2750,5990,355,42000,18000,3839,2545,1998,3824,2075,1600,2886,8500,0,150,15,3,9,125,15,15,25,30,5,180000]
["2015-2016","Pinellas",17500,24376,4950,17864,8566,20528,10008,11326,700,97492,5496,2670,2992,3202,3675,3146,4875,5000,1112,0,220,24,15,15,202,40,10,44,18,10,429194]
["2015-2016","Polk",9250,12500,3325,6250,4750,12200,4500,10200,600,53000,9500,2600,2500,1130,6010,4080,1500,9150,1750,0,642,70,14,11,90,15,3,30,8,1,220000]
["2015-2016","Putnam",1600,1700,320,1100,525,1180,450,1350,180,6800,2000,220,50,180,350,260,70,1800,250,0,110,1,3,1,11,1,1,6,2,1,20000]
["2015-2016","Santa Rosa",1745,2606,441,2052,1152,1302,719,2311,202,20787,1362,764,195,363,539,616,471,1028,675,0,103,4,4,3,40,5,1,18,7,1,54306]
["2015-2016","Sarasota",4540,10234,581,5702,3184,6829,7176,4015,245,62004,4871,1463,420,1117,5656,2126,2925,3425,11,0,211,6,1,3,108,1,8,28,5,4,144277]
["2015-2016","Seminole",4200,5700,5800,5800,3100,7500,2700,5000,250,82000,3500,1600,1500,1500,5200,1950,1500,4000,3050,0,250,43,20,20,75,50,5,30,1,1,450000]
["2015-2016","St. Johns",1973,4775,508,2000,1465,2009,1449,2106,132,20000,3238,676,170,150,392,28,33,706,31,0,136,2,1,0,44,6,1,26,1,0,45000]
["2015-2016","St. Lucie",4300,5700,1200,3600,2600,4600,2550,3200,400,50000,2000,2800,1400,1800,2000,1700,1000,3000,270,0,260,4,4,3,60,15,2,8,8,0,118000]
["2015-2016","Sumter",930,690,175,1100,600,575,1200,780,65,12500,400,150,40,240,440,250,300,650,50,0,40,1,1,1,20,2,1,10,1,0,65000]
["2015-2016","Suwannee",640,590,185,600,340,480,250,960,15,4015,880,100,85,80,45,100,10,455,2,0,10,10,1,1,11,1,1,1,1,1,13484]
["2015-2016","Taylor",415,662,62,338,222,211,111,386,14,2504,510,156,11,0,80,39,6,256,0,0,19,1,0,0,10,0,1,0,0,0,0]
["2015-2016","Union",225,210,60,140,125,160,130,240,3,1200,65,50,30,50,45,30,8,200,8,0,5,1,0,0,10,0,0,0,0,0,3000]
["2015-2016","Volusia",9550,15832,2158,12758,4336,8694,5298,7214,384,63758,3194,1370,3358,386,4236,3042,2036,8246,1238,0,282,6,6,0,128,38,4,40,12,0,180277]
["2015-2016","Wakulla",291,289,88,296,286,317,180,417,13,2793,257,75,7,87,125,72,29,243,5,0,24,0,0,0,12,0,0,0,0,0,9550]
["2015-2016","Walton",861,2413,373,1076,829,784,369,960,145,5816,550,650,48,125,675,260,55,475,175,0,70,1,2,3,50,3,1,5,2,2,21950]
["2015-2016","Washington",400,650,96,300,250,255,115,400,20,3800,254,56,5,39,2,2,2,126,2,0,12,2,2,2,4,2,5,1,1,0,27000]

{"sheet":"DownloadBudgetData Original","index":5,"n_rows":68,"n_cols":33,"rows_kept":68,"cut":false,"hidden":true,"merged":[]}
["FiscalYear","County","Outputs_NewCases_CrimCir","Outputs_NewCases_CrimCounty","Outputs_NewCases_CrimJuvDel","Outputs_NewCases_CrimTraf","Outputs_NewCases_CivCir","Outputs_NewCases_CivCounty","Outputs_NewCases_CivProbate","Outputs_NewCases_CivFamily","Outputs_NewCases_CivJuvDep","Outputs_NewCases_CivTraf","Outputs_Reopens_CrimCir","Outputs_Reopens_CrimCounty","Outputs_Reopens_CrimJuvDel","Outputs_Reopens_CrimTraf","Outputs_Reopens_CivCir","Outputs_Reopens_CivCounty","Outputs_Reopens_CivProbate","Outputs_Reopens_CivFamily","Outputs_Reopens_CivJuvDep","Outputs_Reopens_CivTraf","Outputs_NoticesOfAppeal_CrimCir","Outputs_NoticesOfAppeal_CrimCounty","Outputs_NoticesOfAppeal_CrimJuvDel","Outputs_NoticesOfAppeal_CrimTraf","Outputs_NoticesOfAppeal_CivCir","Outputs_NoticesOfAppeal_CivCounty","Outputs_NoticesOfAppeal_CivProbate","Outputs_NoticesOfAppeal_CivFamily","Outputs_NoticesOfAppeal_CivJuvDep","Outputs_NoticesOfAppeal_CivTraf","Outputs_FinReceipts"]
["2015-2016","Alachua",4550,5900,1220,4050,1750,4800,2700,2800,160,50000,1800,600,800,700,1300,2200,1450,4800,250,0,200,10,10,15,30,6,5,0,0,0,150000]
["2015-2016","Baker",571,741,121,479,153,266,193,418,64,4038,186,234,39,172,6,0,6,214,0,0,16,1,2,0,4,0,1,1,1,0,33140]
["2015-2016","Bay",5300,4200,1035,2100,1460,3081,1479,2787,315,32165,2562,1200,700,500,1000,840,40,2400,1600,0,185,10,5,2,30,6,4,10,12,1,75794]
["2015-2016","Bradford",700,650,120,600,250,325,115,350,16,8200,125,130,15,85,60,50,12,235,0,0,5,1,0,0,10,1,0,0,0,0,14000]
["2015-2016","Brevard",9200,10000,1800,7500,5600,7000,5000,7200,350,55000,8000,2100,2600,2100,6700,3600,2000,8700,500,0,500,25,3,30,100,20,10,35,25,15,453037]
["2015-2016","Broward",16920,26760,4680,32520,23880,70320,11280,25800,1080,359040,16680,1920,1770,1320,56160,26880,480,26040,4440,0,840,120,40,10,720,240,40,120,40,10,925000]
["2015-2016","Calhoun",210,150,30,125,75,120,55,225,10,1600,180,25,8,24,10,10,2,100,35,0,5,0,0,0,0,0,0,0,0,0,4700]
["2015-2016","Charlotte",2400,2500,650,2500,1800,1900,2400,2150,125,15500,1015,450,300,500,1075,400,475,580,30,0,60,8,1,1,50,3,3,0,3,3,53000]
["2015-2016","Citrus",1200,1800,300,900,1150,1600,1585,1800,220,5500,2500,900,260,600,1080,700,750,1800,1550,0,143,2,2,1,24,4,3,4,12,2,130000]
["2015-2016","Clay",1700,2250,660,1920,1320,2650,950,2340,270,20000,950,190,215,150,1050,570,60,2250,1200,0,40,6,6,3,46,7,1,15,2,1,54641]
["2015-2016","Collier",2400,4200,700,4900,2900,3800,3800,3100,250,33000,1800,1300,300,1200,3100,1500,1200,3200,800,0,100,1,1,1,100,1,1,1,1,1,204000]
["2015-2016","Columbia",1100,1400,300,1100,550,1110,420,1200,175,12000,1000,350,160,450,130,230,110,1050,100,0,60,1,0,1,35,2,1,1,1,1,23000]
["2015-2016","Dade",30362,45038,4889,76503,30460,78035,13663,30782,4513,722200,26629,14793,5150,48378,56040,24587,46801,25431,11770,0,1007,23,70,28,1035,357,35,140,75,0,1274168]
["2015-2016","Desoto",560,725,250,475,200,330,110,445,20,5000,250,100,100,50,45,1,1,80,5,0,20,1,1,1,15,1,1,1,1,1,10750]
["2015-2016","Dixie",260,231,43,185,106,146,91,358,34,2600,53,40,2,4,3,2,3,10,1,0,4,0,0,0,4,0,0,2,2,0,4334]
["2015-2016","Duval",11570,21514,3410,19009,8295,20839,6148,13672,1117,109515,8185,2723,1878,1957,3782,2284,567,6589,427,0,337,2,2,5,206,133,14,66,82,7,278875]
["2015-2016","Escambia",6048,7063,1569,3612,2198,4185,3425,5032,300,34098,6963,1391,5782,503,1905,1440,2250,6584,4538,0,670,30,4,5,50,15,4,16,15,5,117250]
["2015-2016","Flagler",1100,1600,250,1200,800,1100,700,1200,50,9000,440,300,60,140,900,350,160,900,200,0,40,1,1,1,15,1,1,3,1,1,24000]
["2015-2016","Franklin",250,550,40,175,140,90,80,200,8,1200,200,175,35,100,75,1,0,1,0,0,2,2,0,1,4,1,0,1,0,0,4565]
["2015-2016","Gadsden",553,649,126,995,411,557,432,581,11,11701,558,461,30,0,150,371,43,598,0,0,51,0,0,0,0,0,0,0,0,0,24619]
["2015-2016","Gilchrist",210,280,55,150,125,145,90,300,15,1000,85,50,15,85,12,2,6,190,1,0,2,0,0,0,1,0,1,2,1,0,3600]
["2015-2016","Glades",140,343,23,199,54,79,58,102,4,4509,48,22,0,32,31,4,2,64,5,0,6,0,0,0,2,1,0,0,1,0,6618]
["2015-2016","Gulf",337,288,38,190,133,125,114,185,8,852,161,39,16,71,56,0,0,140,0,0,9,0,0,0,11,0,0,0,0,0,4267]
["2015-2016","Hamilton",170,215,80,230,350,75,60,195,8,2500,100,20,10,5,24,10,10,8,24,0,15,1,2,1,5,1,2,1,1,1,7500]
["2015-2016","Hardee",430,690,149,785,140,210,125,400,20,5055,210,60,30,30,75,60,95,395,115,0,0,0,0,0,0,0,0,0,0,0,11500]
["2015-2016","Hendry",760,1200,245,1300,280,380,110,550,36,7000,120,150,30,15,60,15,35,190,50,0,15,1,1,1,5,1,20,75,50,1,15000]
["2015-2016","Hernando",2100,2150,650,1500,1700,2500,2550,2300,155,28000,3800,700,250,300,1600,825,800,1200,666,0,100,2,0,0,20,5,0,5,2,2,70350]
["2015-2016","Highlands",1062,1263,418,972,691,1300,1130,1077,100,9206,902,1629,1255,1250,394,204,211,1505,270,0,113,1,1,2,18,3,1,1,2,2,25500]
["2015-2016","Hillsborough",18740,24714,4735,32815,10238,36073,10233,17358,992,187899,15613,1568,2631,1276,19198,13844,5407,14447,631,0,998,19,34,43,214,26,5,126,39,19,357734]
["2015-2016","Holmes",475,500,70,250,130,200,100,330,17,3450,250,70,25,43,18,10,5,100,20,0,12,0,0,0,4,1,0,1,0,0,7500]
["2015-2016","Indian River",1440,2940,400,1510,1100,1810,1512,1900,125,18200,1532,196,1184,74,988,508,444,1734,1676,0,50,4,1,2,42,8,2,4,2,1,46500]
["2015-2016","Jackson",597,506,130,419,756,640,288,215,137,6655,245,42,13,44,89,3,183,445,35,0,19,0,0,0,15,8,0,1,0,0,13490]
["2015-2016","Jefferson",190,208,27,294,149,137,73,159,11,6188,99,7,11,4,13,90,2,200,9,0,0,0,0,0,4,0,0,0,0,0,7727]
["2015-2016","Lafayette",45,98,8,60,58,85,41,125,4,575,55,8,7,10,4,15,1,30,1,0,4,1,1,1,3,1,1,2,1,1,1326]
["2015-2016","Lake",3200,3200,900,4050,2400,4100,2550,3650,230,39000,1200,760,320,515,2750,1650,625,3900,1100,0,160,3,0,2,60,2,0,10,10,10,341500]
["2015-2016","Lee",5700,15000,2250,9200,5000,11000,6600,8600,450,88000,19000,3700,615,3200,7000,4700,3500,7800,2000,0,225,15,5,10,170,25,2,35,10,0,230000]
["2015-2016","Leon",4115,3543,811,3138,3739,6300,2505,4500,125,37950,824,293,3594,227,1895,2284,1314,3975,1968,0,269,5,24,2,410,6,2,9,12,5,119000]
["2015-2016","Levy",650,800,160,550,325,510,245,850,20,3500,750,320,350,55,205,250,55,575,100,0,43,2,1,1,10,3,1,5,2,1,9822]
["2015-2016","Liberty",94,145,36,60,38,55,41,159,1,572,140,31,6,41,10,1,10,51,0,0,4,0,0,0,4,0,0,0,0,0,2500]
["2015-2016","Madison",350,420,130,470,120,210,110,300,8,9900,330,62,24,60,8,3,1,290,1,0,8,1,1,1,1,1,1,1,1,1,15900]
["2015-2016","Manatee",4500,5500,1000,5100,2000,5000,3200,4000,700,33000,4400,750,1200,1100,2400,2000,1400,5500,1500,0,250,15,15,10,75,10,0,15,10,0,110000]
["2015-2016","Marion",4843,5293,1156,4311,3168,4612,4915,4820,297,28929,5670,1403,1105,1445,2540,1693,791,5953,1430,0,321,13,1,6,67,12,2,24,19,4,400522]
["2015-2016","Martin",1694,3055,402,3256,1540,1712,1466,1527,143,23512,1882,320,824,208,822,460,425,1122,59,0,111,4,7,3,52,13,0,9,3,1,59646]
["2015-2016","Monroe",1400,3400,175,900,860,1150,550,1450,85,26500,700,230,200,80,700,100,70,280,250,0,85,5,1,1,45,3,3,1,1,3,49000]
["2015-2016","Nassau",865,1550,170,1500,500,750,475,1175,49,9000,450,700,60,950,475,320,80,900,320,0,60,1,1,1,7,1,0,3,0,0,22500]
["2015-2016","Okaloosa",3000,4800,900,3400,1650,3000,1650,3400,350,24800,4300,2000,650,980,1800,1500,375,2000,285,0,95,5,1,1,50,10,1,20,5,1,65750]
["2015-2016","Okeechobee",730,634,117,734,615,456,194,562,74,4910,322,153,36,79,257,177,62,507,439,0,74,2,0,0,14,0,0,2,2,0,14604]
["2015-2016","Orange",18400,23700,6050,19165,11590,31000,6680,19660,630,262000,10560,3100,7100,2200,24500,10000,4600,15300,1700,0,665,25,40,70,350,170,15,80,5,30,884000]
["2015-2016","Osceola",5043,5919,1480,4917,4579,5233,1374,5406,113,85196,10037,7586,1405,7877,3091,667,394,3169,1518,0,156,9,5,6,72,12,4,9,17,1,170000]
["2015-2016","Palm Beach",14000,32750,3300,29000,15000,28800,11100,12750,890,257000,6800,2000,8000,4500,24000,8000,7400,19700,5500,0,500,35,35,43,523,87,38,125,21,24,550000]
["2015-2016","Pasco",8676,13296,1656,4200,4821,7275,2750,5990,355,42000,18000,3839,2545,1998,3824,2075,1600,2886,8500,0,150,15,3,9,125,15,15,25,30,5,180000]
["2015-2016","Pinellas",17800,24376,4950,17864,8566,20528,10008,11326,700,97492,5496,2670,2992,3202,2954,3146,4220,4586,1112,0,220,24,10,15,202,40,7,44,18,10,429194]
["2015-2016","Polk",9116,13740,3450,7344,4750,12200,4500,10200,600,60181,9781,2913,2450,1429,6010,4080,1500,9150,1750,0,642,46,14,7,90,15,3,30,8,2,232000]
["2015-2016","Putnam",1750,1800,320,1300,575,1050,450,1400,125,7200,2300,275,60,200,360,250,50,1700,225,0,90,2,2,1,8,2,2,6,2,1,23000]
["2015-2016","Santa Rosa",1745,2606,441,2052,1152,1302,719,2311,202,20787,1362,764,195,363,539,616,471,1028,675,0,103,4,4,3,40,5,1,18,7,1,54306]
["2015-2016","Sarasota",4540,10234,581,5702,3184,6829,7176,4015,245,62004,4871,1463,420,1117,5656,2126,2925,3425,11,0,211,6,1,3,108,1,8,28,5,4,144277]
["2015-2016","Seminole",4200,5700,1800,5800,3100,7500,2700,5000,250,82000,3500,1600,1250,1500,5200,1950,1500,4000,3050,0,250,43,5,20,75,50,5,30,1,1,450000]
["2015-2016","St. Johns",1973,4775,508,2094,1465,2009,1449,2106,132,23610,3238,676,170,160,392,28,33,706,31,0,136,2,1,0,44,6,1,26,1,0,47000]
["2015-2016","St. Lucie",4300,5700,1200,3600,2600,4600,2550,3200,400,50000,2000,2800,1400,1800,2000,1700,1000,3000,270,0,260,4,4,3,60,15,2,8,8,0,118000]
["2015-2016","Sumter",960,700,150,1000,850,600,1200,850,45,13000,425,100,20,200,400,260,300,675,40,0,50,1,1,1,15,2,1,5,1,1,60000]
["2015-2016","Suwannee",800,600,200,620,300,550,270,750,25,3500,750,160,110,80,75,75,15,475,2,0,45,2,1,1,20,1,1,1,1,1,12166]
["2015-2016","Taylor",415,662,62,338,222,211,111,386,14,2504,510,156,11,0,80,39,6,256,0,0,19,1,0,0,10,0,1,0,0,0,8200]
["2015-2016","Union",225,210,60,140,125,160,130,240,3,1200,65,50,30,50,45,30,8,200,8,0,5,1,0,0,10,0,0,0,0,0,3000]
["2015-2016","Volusia",9550,15832,2158,12758,4336,8694,5298,7214,384,63758,3194,1370,3358,386,4236,3042,2036,8246,1238,0,282,6,6,0,128,38,4,40,12,0,180277]
["2015-2016","Wakulla",291,289,88,296,286,317,180,417,13,2793,257,75,7,87,125,72,29,243,5,0,24,0,0,0,12,0,0,0,0,0,9550]
["2015-2016","Walton",860,2312,372,958,706,770,349,845,137,6001,514,508,52,141,714,252,55,498,171,0,59,2,1,1,42,2,1,7,3,2,22941]
["2015-2016","Washington",400,650,96,300,250,255,115,400,20,3800,254,56,5,39,2,2,2,126,2,0,12,2,2,2,4,2,5,1,1,0,27000]